BodyName,ServiceAreaCategorisation,ServiceDivisionCategorisation,ExpensesType,Date,TransactionNumber,Amount,CapitalorRevenue,SupplierName
Peterborough City Council,Deficit/(Surplus) on Trading Undertakings,Trading Account Surpluses & Deficits,Premises,01/09/2011,391352,630.6,REVENUE,Princebuild Limited
Peterborough City Council,Central Services to the Public,Local Tax,Supplies and Services,01/09/2011,392949,555.55,REVENUE,Rossendales C B Ltd
Peterborough City Council,Children's & Education Services - Children's Social Care,Children Looked After,Supplies and Services - Transfer Payments,01/09/2011,393147,9247.08,REVENUE,Lovell's Hall
Peterborough City Council,Children's & Education Services - Children's Social Care,Children Looked After,Supplies and Services - Transfer Payments,01/09/2011,395186,3179.24,REVENUE,Fostering Options Ltd
Peterborough City Council,Children's & Education Services - Children's Social Care,Children Looked After,Supplies and Services - Transfer Payments,01/09/2011,395188,3179.24,REVENUE,Fostering Options Ltd
Peterborough City Council,Children's & Education Services - Children's Social Care,Children Looked After,Employees,01/09/2011,396110,1273.2,REVENUE,Textbook Teachers
Peterborough City Council,Capital,Capital,Capital Pending Update to BS,01/09/2011,396744,6678.48,CAPITAL,Stirling Maynard and Partners
Peterborough City Council,Children's & Education Services - Children's Social Care,Children Looked After,Supplies and Services - Transfer Payments,01/09/2011,397022,9247.08,REVENUE,Lovell's Hall
Peterborough City Council,Children's & Education Services - Children's Social Care,Other Children's & Families Services,Employees,01/09/2011,397929,1687.2,REVENUE,Medicare First
Peterborough City Council,Housing Services,Homelessness,Employees,01/09/2011,397976,644.51,REVENUE,Anne Corder Recruitment
Peterborough City Council,Housing Services,Homelessness,Employees,01/09/2011,397977,597.06,REVENUE,Anne Corder Recruitment
Peterborough City Council,Children's & Education Services - Children's Social Care,Children Looked After,Supplies and Services,01/09/2011,398033,677.7,REVENUE,Redacted Personal Data
Peterborough City Council,Children's & Education Services - Children's Social Care,Other Children's & Families Services,Employees,01/09/2011,398035,1665,REVENUE,Care Recruitment UK Ltd
Peterborough City Council,Children's & Education Services - Children's Social Care,Children's Services - Commissioning and Social Work,Third Party Payments,01/09/2011,398043,5000,REVENUE,The National Autistic Society
Peterborough City Council,Children's & Education Services - Children's Social Care,Support Services & Management Costs,Employees,01/09/2011,398048,958.8,REVENUE,SG Training Ltd
Peterborough City Council,Children's & Education Services - Education,Non-School Funding,Supplies and Services,01/09/2011,398097,10386,REVENUE,Kirkstone House School
Peterborough City Council,Children's & Education Services - Children's Social Care,Children Looked After,Supplies and Services - Transfer Payments,01/09/2011,398116,3703.57,REVENUE,Fosterplus Ltd
Peterborough City Council,"Highways, Roads & Transport Services",Public Transport,Supplies and Services,01/09/2011,398394,2075.46,REVENUE,Statutory Payment of Concessionary Fares to Bus Provider
Peterborough City Council,"Highways, Roads & Transport Services",Public Transport,Supplies and Services,01/09/2011,398395,15000,REVENUE,First Eastern Counties Buses Ltd
Peterborough City Council,Children's & Education Services - Children's Social Care,Other Children's & Families Services,Employees,01/09/2011,398441,1491,REVENUE,Blue Group International Ltd
Peterborough City Council,More than one Service Area Category,More than one Service Division,Third Party Payments,01/09/2011,398454,748767.8,REVENUE,Enterprise Managed Services Limited
Peterborough City Council,Children's & Education Services - Children's Social Care,Other Children's & Families Services,Employees,01/09/2011,398455,1687.2,REVENUE,Medicare First
Peterborough City Council,Children's & Education Services - Children's Social Care,Other Children's & Families Services,Employees,01/09/2011,398457,1731.6,REVENUE,Medicare First
Peterborough City Council,Children's & Education Services - Children's Social Care,Children Looked After,Employees,01/09/2011,398458,7776,REVENUE,Jane Scannell Ltd
Peterborough City Council,Children's & Education Services - Children's Social Care,Other Children's & Families Services,Employees,01/09/2011,398460,1731.6,REVENUE,Medicare First
Peterborough City Council,Children's & Education Services - Children's Social Care,Other Children's & Families Services,Employees,01/09/2011,398461,1731.6,REVENUE,Medicare First
Peterborough City Council,Children's & Education Services - Children's Social Care,Other Children's & Families Services,Employees,01/09/2011,398462,1677.6,REVENUE,Medicare First
Peterborough City Council,Children's & Education Services - Children's Social Care,Children Looked After,Supplies and Services - Transfer Payments,01/09/2011,398467,18483.44,REVENUE,Young Options College Ltd
Peterborough City Council,Children's & Education Services - Children's Social Care,Children Looked After,Supplies and Services - Transfer Payments,01/09/2011,398490,3642.9,REVENUE,Five Rivers
Peterborough City Council,Support Services,Support Services,Supplies and Services,01/09/2011,398492,3273.02,REVENUE,NB Real Estate
Peterborough City Council,Children's & Education Services - Education,All Schools - apportion across sectors,Supplies and Services,01/09/2011,398497,640.8,REVENUE,Learning Pool Limited
Peterborough City Council,Children's & Education Services - Children's Social Care,Children Looked After,Supplies and Services - Transfer Payments,01/09/2011,398499,11400,REVENUE,Lincoln House Childrens Services
Peterborough City Council,Children's & Education Services - Children's Social Care,Other Children's & Families Services,Employees,01/09/2011,398507,1658.78,REVENUE,Blue Group International Ltd
Peterborough City Council,Housing Services,Private Sector Housing Renewal,Supplies and Services,01/09/2011,398512,1217.2,REVENUE,T G M Maintenance
Peterborough City Council,Capital,Capital,Capital Pending Update to BS,01/09/2011,398522,15397.2,CAPITAL,Richard Rogers Conservation Ltd
Peterborough City Council,Housing Services,Housing Benefits,Employees,01/09/2011,398524,1248.72,REVENUE,The Synergy Group
Peterborough City Council,Housing Services,Housing Benefits,Employees,01/09/2011,398526,1154.88,REVENUE,The Synergy Group
Peterborough City Council,Housing Services,Housing Benefits,Employees,01/09/2011,398529,1102.5,REVENUE,The Synergy Group
Peterborough City Council,Housing Services,Housing Benefits,Employees,01/09/2011,398535,1097.14,REVENUE,The Synergy Group
Peterborough City Council,Housing Services,Housing Benefits,Employees,01/09/2011,398536,1116,REVENUE,The Synergy Group
Peterborough City Council,Housing Services,Housing Benefits,Employees,01/09/2011,398537,1241.5,REVENUE,The Synergy Group
Peterborough City Council,Children's & Education Services - Children's Social Care,Children Looked After,Supplies and Services - Transfer Payments,01/09/2011,398538,3011.43,REVENUE,Nene Valley Fostering Agency
Peterborough City Council,Children's & Education Services - Children's Social Care,Children Looked After,Supplies and Services - Transfer Payments,01/09/2011,398539,3011.43,REVENUE,Nene Valley Fostering Agency
Peterborough City Council,Children's & Education Services - Children's Social Care,Children Looked After,Supplies and Services - Transfer Payments,01/09/2011,398540,2878.57,REVENUE,Nene Valley Fostering Agency
Peterborough City Council,Children's & Education Services - Children's Social Care,Children Looked After,Supplies and Services - Transfer Payments,01/09/2011,398542,2878.57,REVENUE,Nene Valley Fostering Agency
Peterborough City Council,Children's & Education Services - Children's Social Care,Children Looked After,Supplies and Services - Transfer Payments,01/09/2011,398545,2878.57,REVENUE,Nene Valley Fostering Agency
Peterborough City Council,Children's & Education Services - Children's Social Care,Children Looked After,Supplies and Services - Transfer Payments,01/09/2011,398546,2878.57,REVENUE,Nene Valley Fostering Agency
Peterborough City Council,Children's & Education Services - Children's Social Care,Children Looked After,Supplies and Services - Transfer Payments,01/09/2011,398548,3011.43,REVENUE,Nene Valley Fostering Agency
Peterborough City Council,Children's & Education Services - Children's Social Care,Children Looked After,Supplies and Services - Transfer Payments,01/09/2011,398552,3239.94,REVENUE,Nene Valley Fostering Agency
Peterborough City Council,Children's & Education Services - Children's Social Care,Children Looked After,Supplies and Services - Transfer Payments,01/09/2011,398556,2886.54,REVENUE,Nene Valley Fostering Agency
Peterborough City Council,Children's & Education Services - Education,Non-School Funding,Third Party Payments,01/09/2011,398558,7291,REVENUE,Cambridgeshire County Council
Peterborough City Council,Children's & Education Services - Children's Social Care,Children Looked After,Supplies and Services - Transfer Payments,01/09/2011,398559,3007.66,REVENUE,Nene Valley Fostering Agency
Peterborough City Council,Children's & Education Services - Children's Social Care,Children Looked After,Supplies and Services - Transfer Payments,01/09/2011,398561,2838.89,REVENUE,Nene Valley Fostering Agency
Peterborough City Council,Support Services,Support Services,Employees,01/09/2011,398564,1326.67,REVENUE,Venn Group Ltd
Peterborough City Council,Children's & Education Services - Children's Social Care,Children Looked After,Supplies and Services - Transfer Payments,01/09/2011,398566,3112.49,REVENUE,Nene Valley Fostering Agency
Peterborough City Council,Capital,Capital,Capital Pending Update to BS,01/09/2011,398575,124320,CAPITAL,Murray & Willis Ltd
Peterborough City Council,Children's & Education Services - Children's Social Care,Other Children's & Families Services,Employees,01/09/2011,398581,1609.5,REVENUE,Care Recruitment UK Ltd
Peterborough City Council,Children's & Education Services - Children's Social Care,Other Children's & Families Services,Employees,01/09/2011,398586,1731.6,REVENUE,Medicare First
Peterborough City Council,Children's & Education Services - Children's Social Care,Other Children's & Families Services,Employees,01/09/2011,398587,1731.6,REVENUE,Medicare First
Peterborough City Council,"Highways, Roads & Transport Services",Parking Services,Employees,01/09/2011,398611,672,REVENUE,Unity Recruitment Ltd
Peterborough City Council,Children's & Education Services - Children's Social Care,Children Looked After,Supplies and Services - Transfer Payments,01/09/2011,398628,3122.14,REVENUE,Partners In Parenting
Peterborough City Council,Support Services,Support Services,Supplies and Services,01/09/2011,398629,1554,REVENUE,CIPFA Business Ltd
Peterborough City Council,Children's & Education Services - Children's Social Care,Support Services & Management Costs,Employees,01/09/2011,398634,1529.14,REVENUE,Randstad Care Ltd
Peterborough City Council,Support Services,Support Services,Supplies and Services,01/09/2011,398652,2330.76,REVENUE,PHS Datashred
Peterborough City Council,"Cultural, Environmental and Planning Services",Planning Policy,Supplies and Services,01/09/2011,398762,4896,REVENUE,K S P Consultancy
Peterborough City Council,Support Services,Support Services,Supplies and Services,01/09/2011,398763,759.38,REVENUE,AXA PPP Healthcare OHS Ltd
Peterborough City Council,More than one Service Area Category,More than one Service Division,Supplies and Services,01/09/2011,398937,1138.37,REVENUE,TNT Post Midlands Ltd
Peterborough City Council,More than one Service Area Category,More than one Service Division,Supplies and Services,01/09/2011,398942,995.09,REVENUE,TNT Post Midlands Ltd
Peterborough City Council,Support Services,Support Services,Employees,01/09/2011,398959,8114.15,REVENUE,Brook Street Bureau Plc
Peterborough City Council,"Highways, Roads & Transport Services","Environmental, Safety & Routine Maintenance",Supplies and Services,01/09/2011,398963,10788,REVENUE,Ian Routledge Consultancy
Peterborough City Council,Capital,Capital,Capital Pending Update to BS,01/09/2011,398974,6360.95,CAPITAL,V Couzens (Stamford) Limited
Peterborough City Council,Support Services,Support Services,Premises,01/09/2011,399399,2716.01,REVENUE,Savills L&P Ltd
Peterborough City Council,"Highways, Roads & Transport Services",Street Lighting,Premises,01/09/2011,399401,1779.54,REVENUE,E.ON Energy
Peterborough City Council,Children's & Education Services - Children's Social Care,Children Looked After,Supplies and Services,01/09/2011,399404,746.34,REVENUE,Excell Network Solutions Ltd
Peterborough City Council,"Highways, Roads & Transport Services",Street Lighting,Premises,01/09/2011,399413,-607.36,REVENUE,E.ON Energy
Peterborough City Council,Housing Services,Housing Benefits,Supplies and Services,01/09/2011,399417,633.56,REVENUE,Financial Data Management
Peterborough City Council,Central Services to the Public,Local Tax,Supplies and Services,01/09/2011,399420,964.32,REVENUE,Financial Data Management
Peterborough City Council,Children's & Education Services - Education,Non-School Funding,Supplies and Services,01/09/2011,399488,2500,REVENUE,National Childrens Bureau Enterprises Ltd
Peterborough City Council,Children's & Education Services - Children's Social Care,Other Children's & Families Services,Employees,01/09/2011,399507,1614.38,REVENUE,Frontline Staffing Ltd
Peterborough City Council,"Cultural, Environmental and Planning Services",Planning Policy,Supplies and Services,01/09/2011,399509,536.26,REVENUE,Johnston Press Midlands Division
Peterborough City Council,"Cultural, Environmental and Planning Services",Planning Policy,Supplies and Services,01/09/2011,399510,617.4,REVENUE,Johnston Press Midlands Division
Peterborough City Council,Children's & Education Services - Children's Social Care,Support Services & Management Costs,Supplies and Services,01/09/2011,399523,5014.8,REVENUE,Normans
Peterborough City Council,Children's & Education Services - Children's Social Care,Other Children's & Families Services,Third Party Payments,01/09/2011,399551,1878.5,REVENUE,The Cambs MH & PCTS Charitable Fund
Peterborough City Council,Housing Services,Housing Benefits,Employees,01/09/2011,399555,1111.57,REVENUE,The Synergy Group
Peterborough City Council,Housing Services,Housing Benefits,Employees,01/09/2011,399556,1032.18,REVENUE,The Synergy Group
Peterborough City Council,"Cultural, Environmental and Planning Services",Community Development,Supplies and Services,01/09/2011,399621,6120,REVENUE,MCE Corporate Gifts
Peterborough City Council,"Highways, Roads & Transport Services","Transport planning, policy and strategy",Employees,01/09/2011,399775,1375.2,REVENUE,Hays Specialist Recruitment Ltd
Peterborough City Council,"Cultural, Environmental and Planning Services",Economic Development,Employees,01/09/2011,399780,799.2,REVENUE,Hays Specialist Recruitment Ltd
Peterborough City Council,Children's & Education Services - Children's Social Care,Children Looked After,Supplies and Services - Transfer Payments,01/09/2011,399793,712.99,REVENUE,PC Homes
Peterborough City Council,"Cultural, Environmental and Planning Services",Economic Development,Employees,01/09/2011,399794,1465.2,REVENUE,Hays Specialist Recruitment Ltd
Peterborough City Council,"Cultural, Environmental and Planning Services",Economic Development,Employees,01/09/2011,399800,1339.81,REVENUE,Hays Specialist Recruitment Ltd
Peterborough City Council,Capital,Capital,Capital Pending Update to BS,01/09/2011,399823,24867.43,CAPITAL,Balfour Beatty Civil Engineering
Peterborough City Council,Capital,Capital,Capital Pending Update to BS,01/09/2011,399891,92995.79,CAPITAL,McArdle Sport - TEC Ltd
Peterborough City Council,"Highways, Roads & Transport Services",Public Transport,Supplies and Services,01/09/2011,399951,18856.95,REVENUE,Stagecoach in Peterborough
Peterborough City Council,Support Services,Support Services,Supplies and Services,01/09/2011,400001,810,REVENUE,Johnston Press Midlands Division
Peterborough City Council,Support Services,Support Services,Supplies and Services,01/09/2011,400003,780,REVENUE,Johnston Press Midlands Division
Peterborough City Council,"Cultural, Environmental and Planning Services",Support Services & Management Costs,Third Party Payments,01/09/2011,400071,163437.39,REVENUE,Vivacity Culture and Leisure
Peterborough City Council,"Cultural, Environmental and Planning Services",Support Services & Management Costs,Third Party Payments,01/09/2011,400073,163437.39,REVENUE,Vivacity Culture and Leisure
Peterborough City Council,Children's & Education Services - Children's Social Care,Children Looked After,Employees,01/09/2011,400086,3148.84,REVENUE,Advantage Healthcare Nursing & Care Ltd
Peterborough City Council,Housing Services,Housing Benefits,Supplies and Services,01/09/2011,400092,1119.46,REVENUE,Financial Data Management
Peterborough City Council,Capital,Capital,Capital Pending Update to BS,01/09/2011,400135,35987.34,CAPITAL,Cawarden Co Ltd
Peterborough City Council,"Cultural, Environmental and Planning Services",Community Development,Supplies and Services,01/09/2011,400149,1200,REVENUE,South Grove Community Association
Peterborough City Council,Capital,Capital,Capital Pending Update to BS,01/09/2011,400161,9000,CAPITAL,Mercedes-Benz of Norwich
Peterborough City Council,"Highways, Roads & Transport Services",Public Transport,Supplies and Services,01/09/2011,400191,15000,REVENUE,First Eastern Counties Buses Ltd
Peterborough City Council,"Highways, Roads & Transport Services",Parking Services,Employees,01/09/2011,400221,672,REVENUE,Unity Recruitment Ltd
Peterborough City Council,"Highways, Roads & Transport Services",Parking Services,Employees,01/09/2011,400222,672,REVENUE,Unity Recruitment Ltd
Peterborough City Council,"Highways, Roads & Transport Services",Parking Services,Employees,01/09/2011,400232,672,REVENUE,Unity Recruitment Ltd
Peterborough City Council,More than one Service Area Category,More than one Service Division,More than one Expenses Type,01/09/2011,400243,94044.95,"Mixture of Capital, Revenue and/or Balance Sheet",Ringway Infrastructure Services
Peterborough City Council,Children's & Education Services - Children's Social Care,Children Looked After,Transport,01/09/2011,400339,677.6,REVENUE,Neil Cawthorn
Peterborough City Council,"Cultural, Environmental and Planning Services",Agriculture,Premises,01/09/2011,400343,4862.45,REVENUE,T Clarke East Limited
Peterborough City Council,"Cultural, Environmental and Planning Services",Agriculture,Premises,01/09/2011,400346,3844.84,REVENUE,T Clarke East Limited
Peterborough City Council,"Cultural, Environmental and Planning Services",Agriculture,Premises,01/09/2011,400348,1877.02,REVENUE,T Clarke East Limited
Peterborough City Council,"Cultural, Environmental and Planning Services",Agriculture,Premises,01/09/2011,400350,520.99,REVENUE,T Clarke East Limited
Peterborough City Council,Children's & Education Services - Education,Non-School Funding,Transport,01/09/2011,400351,1007.79,REVENUE,Neil Cawthorn
Peterborough City Council,Children's & Education Services - Education,Non-School Funding,Transport,01/09/2011,400353,516.2,REVENUE,Neil Cawthorn
Peterborough City Council,Deficit/(Surplus) on Trading Undertakings,Trading Account Surpluses & Deficits,Supplies and Services,01/09/2011,400355,697.4,REVENUE,Princebuild Limited
Peterborough City Council,Deficit/(Surplus) on Trading Undertakings,Trading Account Surpluses & Deficits,Supplies and Services,01/09/2011,400357,1070.19,REVENUE,Princebuild Limited
Peterborough City Council,Children's & Education Services - Children's Social Care,Other Children's & Families Services,Employees,01/09/2011,400365,1894.99,REVENUE,Sanctuary Personnel Ltd
Peterborough City Council,Children's & Education Services - Children's Social Care,Children Looked After,Supplies and Services - Transfer Payments,01/09/2011,400383,8832.82,REVENUE,Portsmouth City Council
Peterborough City Council,Capital,Capital,Capital Pending Update to BS,01/09/2011,400431,37009.22,CAPITAL,Benchmark Contracts Ltd
Peterborough City Council,Support Services,Support Services,Supplies and Services,01/09/2011,400536,31752.42,REVENUE,Danwood Group Limited
Peterborough City Council,"Cultural, Environmental and Planning Services",Regulatory services,Supplies and Services,01/09/2011,400537,930,REVENUE,Hollis Industrial Services Ltd
Peterborough City Council,"Cultural, Environmental and Planning Services",Economic Development,Third Party Payments,01/09/2011,400545,3490.8,REVENUE,Haskoning UK Ltd
Peterborough City Council,Support Services,Support Services,Premises,01/09/2011,400572,2221.84,REVENUE,Zurich Insurance Company
Peterborough City Council,Deficit/(Surplus) on Trading Undertakings,Trading Account Surpluses & Deficits,Supplies and Services,01/09/2011,400579,1260,REVENUE,Rolton Group Ltd
Peterborough City Council,"Cultural, Environmental and Planning Services",Community Development,Supplies and Services,01/09/2011,400647,500,REVENUE,Southorpe Parish Council
Peterborough City Council,More than one Service Area Category,More than one Service Division,More than one Expenses Type,01/09/2011,400713,4289.14,"Mixture of Capital, Revenue and/or Balance Sheet",Rawheat Heating & Plumbing Eng.
Peterborough City Council,Deficit/(Surplus) on Trading Undertakings,Trading Account Surpluses & Deficits,Premises,01/09/2011,400714,6307.69,REVENUE,Elliott Group Limited
Peterborough City Council,Deficit/(Surplus) on Trading Undertakings,Trading Account Surpluses & Deficits,Premises,01/09/2011,400715,6104.33,REVENUE,Elliott Group Limited
Peterborough City Council,Deficit/(Surplus) on Trading Undertakings,Trading Account Surpluses & Deficits,Premises,01/09/2011,400716,6307.69,REVENUE,Elliott Group Limited
Peterborough City Council,Deficit/(Surplus) on Trading Undertakings,Trading Account Surpluses & Deficits,Premises,01/09/2011,400717,6104.33,REVENUE,Elliott Group Limited
Peterborough City Council,Deficit/(Surplus) on Trading Undertakings,Trading Account Surpluses & Deficits,Premises,01/09/2011,400718,6308.34,REVENUE,Elliott Group Limited
Peterborough City Council,Capital,Capital,Capital Pending Update to BS,01/09/2011,400721,30783.6,CAPITAL,Pinsent Masons
Peterborough City Council,Children's & Education Services - Children's Social Care,Other Children's & Families Services,Supplies and Services - Transfer Payments,01/09/2011,400755,600,REVENUE,Redacted Personal Data
Peterborough City Council,Children's & Education Services - Children's Social Care,Other Children's & Families Services,Supplies and Services - Transfer Payments,01/09/2011,400756,613.6,REVENUE,Redacted Personal Data
Peterborough City Council,Children's & Education Services - Children's Social Care,Other Children's & Families Services,Supplies and Services - Transfer Payments,01/09/2011,400861,669.48,REVENUE,Redacted Personal Data
Peterborough City Council,Children's & Education Services - Children's Social Care,Children Looked After,Supplies and Services - Transfer Payments,01/09/2011,400868,616.18,REVENUE,Redacted Personal Data
Peterborough City Council,Children's & Education Services - Children's Social Care,Children Looked After,Supplies and Services - Transfer Payments,01/09/2011,400869,560.98,REVENUE,Redacted Personal Data
Peterborough City Council,Children's & Education Services - Children's Social Care,Children Looked After,Supplies and Services - Transfer Payments,01/09/2011,400870,560.98,REVENUE,Redacted Personal Data
Peterborough City Council,Children's & Education Services - Children's Social Care,Children Looked After,Supplies and Services - Transfer Payments,01/09/2011,400871,529.9,REVENUE,Redacted Personal Data
Peterborough City Council,Children's & Education Services - Children's Social Care,Children Looked After,Supplies and Services - Transfer Payments,01/09/2011,400872,560.98,REVENUE,Redacted Personal Data
Peterborough City Council,Children's & Education Services - Children's Social Care,Children Looked After,Supplies and Services - Transfer Payments,01/09/2011,400873,529.9,REVENUE,Redacted Personal Data
Peterborough City Council,Children's & Education Services - Children's Social Care,Children Looked After,Supplies and Services - Transfer Payments,01/09/2011,400875,529.9,REVENUE,Redacted Personal Data
Peterborough City Council,Children's & Education Services - Children's Social Care,Children Looked After,Supplies and Services - Transfer Payments,01/09/2011,400876,529.9,REVENUE,Redacted Personal Data
Peterborough City Council,Children's & Education Services - Children's Social Care,Children Looked After,Supplies and Services - Transfer Payments,01/09/2011,400877,529.9,REVENUE,Redacted Personal Data
Peterborough City Council,Children's & Education Services - Children's Social Care,Children Looked After,Supplies and Services - Transfer Payments,01/09/2011,400878,529.9,REVENUE,Redacted Personal Data
Peterborough City Council,Children's & Education Services - Children's Social Care,Children Looked After,Supplies and Services - Transfer Payments,01/09/2011,400879,529.9,REVENUE,Redacted Personal Data
Peterborough City Council,Children's & Education Services - Children's Social Care,Children Looked After,Supplies and Services - Transfer Payments,01/09/2011,400880,745.71,REVENUE,Redacted Personal Data
Peterborough City Council,Children's & Education Services - Children's Social Care,Children Looked After,Supplies and Services - Transfer Payments,01/09/2011,400883,560.98,REVENUE,Redacted Personal Data
Peterborough City Council,Children's & Education Services - Children's Social Care,Children Looked After,Supplies and Services - Transfer Payments,01/09/2011,400884,560.98,REVENUE,Redacted Personal Data
Peterborough City Council,Children's & Education Services - Children's Social Care,Children Looked After,Supplies and Services - Transfer Payments,01/09/2011,400886,529.9,REVENUE,Redacted Personal Data
Peterborough City Council,Children's & Education Services - Children's Social Care,Children Looked After,Supplies and Services - Transfer Payments,01/09/2011,400888,560.98,REVENUE,Redacted Personal Data
Peterborough City Council,Children's & Education Services - Children's Social Care,Children Looked After,Supplies and Services - Transfer Payments,01/09/2011,400889,529.9,REVENUE,Redacted Personal Data
Peterborough City Council,Children's & Education Services - Children's Social Care,Children Looked After,Supplies and Services - Transfer Payments,01/09/2011,400890,529.9,REVENUE,Redacted Personal Data
Peterborough City Council,Children's & Education Services - Children's Social Care,Children Looked After,Supplies and Services - Transfer Payments,01/09/2011,400891,529.9,REVENUE,Redacted Personal Data
Peterborough City Council,Children's & Education Services - Children's Social Care,Children Looked After,Supplies and Services - Transfer Payments,01/09/2011,400892,626.43,REVENUE,Redacted Personal Data
Peterborough City Council,Children's & Education Services - Children's Social Care,Children Looked After,Supplies and Services - Transfer Payments,01/09/2011,400894,529.9,REVENUE,Redacted Personal Data
Peterborough City Council,Children's & Education Services - Children's Social Care,Children Looked After,Supplies and Services - Transfer Payments,01/09/2011,400895,529.9,REVENUE,Redacted Personal Data
Peterborough City Council,Children's & Education Services - Children's Social Care,Children Looked After,Supplies and Services - Transfer Payments,01/09/2011,400896,529.9,REVENUE,Redacted Personal Data
Peterborough City Council,Children's & Education Services - Children's Social Care,Children Looked After,Supplies and Services - Transfer Payments,01/09/2011,400906,560.98,REVENUE,Redacted Personal Data
Peterborough City Council,Children's & Education Services - Children's Social Care,Children Looked After,Supplies and Services - Transfer Payments,01/09/2011,400907,885.08,REVENUE,Redacted Personal Data
Peterborough City Council,Children's & Education Services - Children's Social Care,Children Looked After,Supplies and Services - Transfer Payments,01/09/2011,400910,529.9,REVENUE,Redacted Personal Data
Peterborough City Council,Children's & Education Services - Children's Social Care,Children Looked After,Supplies and Services - Transfer Payments,01/09/2011,400911,529.9,REVENUE,Redacted Personal Data
Peterborough City Council,Children's & Education Services - Children's Social Care,Children Looked After,Supplies and Services - Transfer Payments,01/09/2011,400913,529.9,REVENUE,Redacted Personal Data
Peterborough City Council,Children's & Education Services - Children's Social Care,Children Looked After,Supplies and Services - Transfer Payments,01/09/2011,400916,560.98,REVENUE,Redacted Personal Data
Peterborough City Council,Children's & Education Services - Children's Social Care,Children Looked After,Supplies and Services - Transfer Payments,01/09/2011,400922,529.9,REVENUE,Redacted Personal Data
Peterborough City Council,Children's & Education Services - Children's Social Care,Children Looked After,Supplies and Services - Transfer Payments,01/09/2011,400927,560.98,REVENUE,Redacted Personal Data
Peterborough City Council,Children's & Education Services - Children's Social Care,Children Looked After,Supplies and Services - Transfer Payments,01/09/2011,400945,529.9,REVENUE,Redacted Personal Data
Peterborough City Council,Children's & Education Services - Children's Social Care,Family Support Services,Supplies and Services,01/09/2011,400957,1148.22,REVENUE,Redacted Personal Data
Peterborough City Council,Children's & Education Services - Children's Social Care,Children Looked After,Supplies and Services - Transfer Payments,01/09/2011,400974,529.9,REVENUE,Redacted Personal Data
Peterborough City Council,Children's & Education Services - Children's Social Care,Children Looked After,Supplies and Services - Transfer Payments,01/09/2011,400980,529.9,REVENUE,Redacted Personal Data
Peterborough City Council,Children's & Education Services - Children's Social Care,Children Looked After,Supplies and Services - Transfer Payments,01/09/2011,400983,571.83,REVENUE,Redacted Personal Data
Peterborough City Council,Children's & Education Services - Children's Social Care,Children Looked After,Supplies and Services - Transfer Payments,01/09/2011,400986,885.08,REVENUE,Redacted Personal Data
Peterborough City Council,Children's & Education Services - Children's Social Care,Children Looked After,Supplies and Services - Transfer Payments,01/09/2011,400988,885.08,REVENUE,Redacted Personal Data
Peterborough City Council,Children's & Education Services - Children's Social Care,Children Looked After,Supplies and Services - Transfer Payments,01/09/2011,400989,885.08,REVENUE,Redacted Personal Data
Peterborough City Council,Children's & Education Services - Children's Social Care,Children Looked After,Supplies and Services - Transfer Payments,01/09/2011,400990,885.08,REVENUE,Redacted Personal Data
Peterborough City Council,Children's & Education Services - Children's Social Care,Children Looked After,Supplies and Services - Transfer Payments,01/09/2011,400991,885.08,REVENUE,Redacted Personal Data
Peterborough City Council,Children's & Education Services - Children's Social Care,Children Looked After,Supplies and Services - Transfer Payments,01/09/2011,400992,571.83,REVENUE,Redacted Personal Data
Peterborough City Council,Children's & Education Services - Children's Social Care,Children Looked After,Supplies and Services - Transfer Payments,01/09/2011,400993,571.83,REVENUE,Redacted Personal Data
Peterborough City Council,Children's & Education Services - Children's Social Care,Children Looked After,Supplies and Services - Transfer Payments,01/09/2011,400996,529.9,REVENUE,Redacted Personal Data
Peterborough City Council,Children's & Education Services - Children's Social Care,Children Looked After,Supplies and Services - Transfer Payments,01/09/2011,400997,572.23,REVENUE,Redacted Personal Data
Peterborough City Council,Children's & Education Services - Children's Social Care,Children Looked After,Supplies and Services - Transfer Payments,01/09/2011,400999,560.98,REVENUE,Redacted Personal Data
Peterborough City Council,Children's & Education Services - Children's Social Care,Children Looked After,Supplies and Services - Transfer Payments,01/09/2011,401018,529.9,REVENUE,Redacted Personal Data
Peterborough City Council,Children's & Education Services - Children's Social Care,Children Looked After,Supplies and Services - Transfer Payments,01/09/2011,401019,560.98,REVENUE,Redacted Personal Data
Peterborough City Council,Children's & Education Services - Children's Social Care,Children Looked After,Supplies and Services - Transfer Payments,01/09/2011,401052,560.98,REVENUE,Redacted Personal Data
Peterborough City Council,Children's & Education Services - Children's Social Care,Children Looked After,Supplies and Services - Transfer Payments,01/09/2011,401075,529.9,REVENUE,Redacted Personal Data
Peterborough City Council,Children's & Education Services - Children's Social Care,Children Looked After,Supplies and Services - Transfer Payments,01/09/2011,401076,529.9,REVENUE,Redacted Personal Data
Peterborough City Council,Children's & Education Services - Children's Social Care,Children Looked After,Supplies and Services - Transfer Payments,01/09/2011,401083,707.42,REVENUE,Redacted Personal Data
Peterborough City Council,Children's & Education Services - Children's Social Care,Children Looked After,Supplies and Services - Transfer Payments,01/09/2011,401085,529.9,REVENUE,Redacted Personal Data
Peterborough City Council,Children's & Education Services - Children's Social Care,Children Looked After,Supplies and Services - Transfer Payments,01/09/2011,401100,2466.4,REVENUE,Redacted Personal Data
Peterborough City Council,Children's & Education Services - Children's Social Care,Other Children's & Families Services,Supplies and Services - Transfer Payments,01/09/2011,401110,633.44,REVENUE,Redacted Personal Data
Peterborough City Council,Children's & Education Services - Children's Social Care,Other Children's & Families Services,Supplies and Services - Transfer Payments,01/09/2011,401111,676.81,REVENUE,Redacted Personal Data
Peterborough City Council,Children's & Education Services - Children's Social Care,Youth Justice,Premises,01/09/2011,401152,1410,REVENUE,Artesian Property Partnership
Peterborough City Council,Children's & Education Services - Children's Social Care,Youth Justice,Premises,01/09/2011,401153,1410,REVENUE,Artesian Property Partnership
Peterborough City Council,Children's & Education Services - Education,Non-School Funding,Transport,01/09/2011,401165,648,REVENUE,3 Star Ambassador Taxis
Peterborough City Council,Children's & Education Services - Education,Non-School Funding,Transport,01/09/2011,401167,750.6,REVENUE,3 Star Ambassador Taxis
Peterborough City Council,Children's & Education Services - Education,Non-School Funding,Transport,01/09/2011,401168,878.4,REVENUE,Woodgrange Travel Ltd t/a DiamondCars
Peterborough City Council,Children's & Education Services - Education,Non-School Funding,Transport,01/09/2011,401169,672,REVENUE,Goldstar Cabs Ltd
Peterborough City Council,Children's & Education Services - Education,Non-School Funding,Transport,01/09/2011,401170,1258.8,REVENUE,Goldstar Cabs Ltd
Peterborough City Council,More than one Service Area Category,More than one Service Division,Transport,01/09/2011,401171,721.2,REVENUE,Goldstar Cabs Ltd
Peterborough City Council,Children's & Education Services - Education,Non-School Funding,Transport,01/09/2011,401173,646.8,REVENUE,Goldstar Cabs Ltd
Peterborough City Council,Corporate & Democratic Core,Democratic Representation & Managemetn,Supplies and Services,01/09/2011,401179,519,REVENUE,Bailey's Caterers Ltd
Peterborough City Council,"Highways, Roads & Transport Services",Traffic management & Road Safety,Supplies and Services,01/09/2011,401190,6462.5,REVENUE,Trapeze Group (UK) Ltd
Peterborough City Council,"Highways, Roads & Transport Services",Traffic management & Road Safety,Supplies and Services,01/09/2011,401191,6462.5,REVENUE,Trapeze Group (UK) Ltd
Peterborough City Council,Capital,Capital,Capital Pending Update to BS,01/09/2011,401222,7212.8,CAPITAL,British Gas Business
Peterborough City Council,Children's & Education Services - Children's Social Care,Support Services & Management Costs,Supplies and Services,01/09/2011,401234,2000,REVENUE,Redacted Personal Data
Peterborough City Council,Support Services,Support Services,Supplies and Services,01/09/2011,401235,13200,REVENUE,Access Intelligence Media & Comms.
Peterborough City Council,Deficit/(Surplus) on Trading Undertakings,Trading Account Surpluses & Deficits,Supplies and Services,01/09/2011,401240,3345,REVENUE,Barker Storey Matthews
Peterborough City Council,Children's & Education Services - Children's Social Care,Other Children's & Families Services,Third Party Payments,01/09/2011,401261,15000,REVENUE,Family Action
Peterborough City Council,Deficit/(Surplus) on Trading Undertakings,Trading Account Surpluses & Deficits,Supplies and Services,01/09/2011,401264,2981.84,REVENUE,Barron Clark Castings Ltd
Peterborough City Council,Children's & Education Services - Children's Social Care,Children Looked After,Employees,01/09/2011,401271,1068.53,REVENUE,Randstad Care Ltd
Peterborough City Council,"Cultural, Environmental and Planning Services",Culture & Heritage,Supplies and Services,01/09/2011,401272,848.4,REVENUE,Chapter of Peterborough Cathedral
Peterborough City Council,"Cultural, Environmental and Planning Services",Building Control,Supplies and Services,01/09/2011,401273,1917.6,REVENUE,Resolution Ltd
Peterborough City Council,Deficit/(Surplus) on Trading Undertakings,Trading Account Surpluses & Deficits,Supplies and Services,01/09/2011,401274,6082.56,REVENUE,Perkins Engines Co Ltd
Peterborough City Council,"Highways, Roads & Transport Services",Parking Services,Supplies and Services,02/09/2011,392893,5041.94,REVENUE,Jones Lang LaSalle
Peterborough City Council,Children's & Education Services - Children's Social Care,Children Looked After,Supplies and Services - Transfer Payments,02/09/2011,394262,22609.57,REVENUE,Lovell's Hall
Peterborough City Council,Capital,Capital,Capital Pending Update to BS,02/09/2011,396123,1246.04,CAPITAL,Atkins Limited
Peterborough City Council,Capital,Capital,Capital Pending Update to BS,02/09/2011,396124,14868.28,CAPITAL,Atkins Limited
Peterborough City Council,Capital,Capital,Capital Pending Update to BS,02/09/2011,396125,3828.26,CAPITAL,Atkins Limited
Peterborough City Council,Capital,Capital,Capital Pending Update to BS,02/09/2011,396126,10415.51,CAPITAL,Atkins Limited
Peterborough City Council,"Cultural, Environmental and Planning Services",Economic Development,Third Party Payments,02/09/2011,396150,9905,REVENUE,Peterborough Racial Equality Council
Peterborough City Council,Children's & Education Services - Children's Social Care,Children Looked After,Supplies and Services - Transfer Payments,02/09/2011,396965,2265.76,REVENUE,Lovell's Hall
Peterborough City Council,Housing Services,Private Sector Housing Renewal,Supplies and Services,02/09/2011,398612,1389.75,REVENUE,Deprez Developments
Peterborough City Council,Support Services,Support Services,Employees,02/09/2011,400033,1764,REVENUE,Sellick Partnership Group Limited
Peterborough City Council,Support Services,Support Services,Employees,02/09/2011,400037,1764,REVENUE,Sellick Partnership Group Limited
Peterborough City Council,"Cultural, Environmental and Planning Services",Community Development,Supplies and Services,02/09/2011,400300,1000,REVENUE,Peakirk cum Glinton C of E  P S
Peterborough City Council,Capital,Capital,Capital Pending Update to BS,02/09/2011,400534,35970.63,CAPITAL,L Garfield (Builders) Ltd
Peterborough City Council,Support Services,Support Services,Supplies and Services,02/09/2011,400630,6240,REVENUE,Redacted Personal Data
Peterborough City Council,"Cultural, Environmental and Planning Services",Community Development,Supplies and Services,02/09/2011,400644,2500,REVENUE,The Riverside Pavilion
Peterborough City Council,"Cultural, Environmental and Planning Services",Community Development,Supplies and Services,02/09/2011,400645,500,REVENUE,Old Dogsthorpe Residents Assoc
Peterborough City Council,"Cultural, Environmental and Planning Services",Community Development,Supplies and Services,02/09/2011,400649,1850,REVENUE,Northborough Parish Council
Peterborough City Council,Children's & Education Services - Education,Non-School Funding,Supplies and Services,02/09/2011,400663,538.44,REVENUE,St Thomas More Catholic Nursery
Peterborough City Council,Capital,Capital,Capital Pending Update to BS,02/09/2011,400674,19552.01,CAPITAL,Ringway Infrastructure Services
Peterborough City Council,Capital,Capital,Capital Pending Update to BS,02/09/2011,400675,134089.7,CAPITAL,Ringway Infrastructure Services
Peterborough City Council,Capital,Capital,Capital Pending Update to BS,02/09/2011,400676,87865.77,CAPITAL,Ringway Infrastructure Services
Peterborough City Council,Capital,Capital,Capital Pending Update to BS,02/09/2011,401233,77421.2,CAPITAL,Benchmark Contracts Ltd
Peterborough City Council,Support Services,Support Services,Supplies and Services,02/09/2011,401308,44819.94,REVENUE,AMTEC Consulting Plc
Peterborough City Council,Support Services,Support Services,Supplies and Services,02/09/2011,401309,6480,REVENUE,AMTEC Consulting Plc
Peterborough City Council,Central Services to the Public,Local Tax,Supplies and Services,02/09/2011,401310,25898.4,REVENUE,AMTEC Consulting Plc
Peterborough City Council,Capital,Capital,Capital Pending Update to BS,02/09/2011,401311,47557.2,CAPITAL,AMTEC Consulting Plc
Peterborough City Council,"Cultural, Environmental and Planning Services",Environmental Initiatives,Supplies and Services,02/09/2011,401312,9451.2,REVENUE,AMTEC Consulting Plc
Peterborough City Council,Capital,Capital,Capital Pending Update to BS,02/09/2011,401313,9591.6,CAPITAL,AMTEC Consulting Plc
Peterborough City Council,Deficit/(Surplus) on Trading Undertakings,Trading Account Surpluses & Deficits,Supplies and Services,02/09/2011,401314,14095.2,REVENUE,AMTEC Consulting Plc
Peterborough City Council,Capital,Capital,Capital Pending Update to BS,02/09/2011,401315,11224.98,CAPITAL,AMTEC Consulting Plc
Peterborough City Council,Support Services,Support Services,Supplies and Services,02/09/2011,401316,1773.6,REVENUE,AMTEC Consulting Plc
Peterborough City Council,Capital,Capital,Capital Pending Update to BS,02/09/2011,401317,4770,CAPITAL,AMTEC Consulting Plc
Peterborough City Council,Children's & Education Services - Education,Non-School Funding,Supplies and Services,02/09/2011,401318,9528,REVENUE,AMTEC Consulting Plc
Peterborough City Council,Support Services,Support Services,Supplies and Services,02/09/2011,401319,11781,REVENUE,AMTEC Consulting Plc
Peterborough City Council,Support Services,Support Services,Supplies and Services,02/09/2011,401320,7622.4,REVENUE,AMTEC Consulting Plc
Peterborough City Council,Support Services,Support Services,Supplies and Services,02/09/2011,401321,3783,REVENUE,AMTEC Consulting Plc
Peterborough City Council,Support Services,Support Services,Supplies and Services,02/09/2011,401322,11097,REVENUE,AMTEC Consulting Plc
Peterborough City Council,"Cultural, Environmental and Planning Services",Economic Development,Supplies and Services,02/09/2011,401323,32674.56,REVENUE,AMTEC Consulting Plc
Peterborough City Council,Support Services,Support Services,Supplies and Services,02/09/2011,401324,33690,REVENUE,AMTEC Consulting Plc
Peterborough City Council,Support Services,Support Services,Supplies and Services,02/09/2011,401325,12474,REVENUE,AMTEC Consulting Plc
Peterborough City Council,Support Services,Support Services,Supplies and Services,02/09/2011,401326,4470,REVENUE,AMTEC Consulting Plc
Peterborough City Council,Capital,Capital,Capital Pending Update to BS,02/09/2011,401327,16572,CAPITAL,AMTEC Consulting Plc
Peterborough City Council,Support Services,Support Services,Supplies and Services,02/09/2011,401328,1771.2,REVENUE,AMTEC Consulting Plc
Peterborough City Council,Support Services,Support Services,Supplies and Services,02/09/2011,401329,20160,REVENUE,AMTEC Consulting Plc
Peterborough City Council,Support Services,Support Services,Supplies and Services,02/09/2011,401330,17280,REVENUE,AMTEC Consulting Plc
Peterborough City Council,Capital,Capital,Capital Pending Update to BS,02/09/2011,401331,6048,CAPITAL,AMTEC Consulting Plc
Peterborough City Council,Support Services,Support Services,Supplies and Services,02/09/2011,401332,53778,REVENUE,AMTEC Consulting Plc
Peterborough City Council,Capital,Capital,Capital Pending Update to BS,02/09/2011,401333,2160,CAPITAL,AMTEC Consulting Plc
Peterborough City Council,Support Services,Support Services,Supplies and Services,02/09/2011,401334,5820,REVENUE,AMTEC Consulting Plc
Peterborough City Council,Support Services,Support Services,Supplies and Services,02/09/2011,401335,16200,REVENUE,AMTEC Consulting Plc
Peterborough City Council,Central Services to the Public,Elections,Supplies and Services,02/09/2011,401336,4435.2,REVENUE,AMTEC Consulting Plc
Peterborough City Council,Support Services,Support Services & Management Costs,Supplies and Services,02/09/2011,401337,9360,REVENUE,AMTEC Consulting Plc
Peterborough City Council,Children's & Education Services - Children's Social Care,Support Services & Management Costs,Employees,02/09/2011,401371,1790.75,REVENUE,Randstad Care Ltd
Peterborough City Council,Children's & Education Services - Children's Social Care,Support Services & Management Costs,Employees,02/09/2011,401372,1611.79,REVENUE,Randstad Care Ltd
Peterborough City Council,Children's & Education Services - Children's Social Care,Children Looked After,Supplies and Services - Transfer Payments,02/09/2011,401375,582.85,REVENUE,Next Steps Care Management Ltd
Peterborough City Council,Children's & Education Services - Children's Social Care,Management and support services,Premises,02/09/2011,401377,775,REVENUE,Nick Smith Building & Maintenance
Peterborough City Council,"Cultural, Environmental and Planning Services","Cemetery, Crematorium & Mortuary Services",Premises,02/09/2011,401394,1693.2,REVENUE,Large Parasols Ltd
Peterborough City Council,"Cultural, Environmental and Planning Services",Economic Development,Supplies and Services,02/09/2011,401415,3093.95,REVENUE,Vivacity Culture and Leisure
Peterborough City Council,"Cultural, Environmental and Planning Services",Planning Policy,Supplies and Services,02/09/2011,401436,2880,REVENUE,Hyder Consulting (UK) Ltd
Peterborough City Council,Support Services,Support Services,Supplies and Services,02/09/2011,401441,1486.8,REVENUE,Browne Jacobson
Peterborough City Council,Capital,Capital,Capital Pending Update to BS,02/09/2011,401447,6840,CAPITAL,L Garfield (Builders) Ltd
Peterborough City Council,Capital,Capital,Capital Pending Update to BS,02/09/2011,401448,86806.45,CAPITAL,L Garfield (Builders) Ltd
Peterborough City Council,Capital,Capital,Capital Pending Update to BS,02/09/2011,401449,1974,CAPITAL,National Grid Gas Plc
Peterborough City Council,Children's & Education Services - Children's Social Care,Family Support Services,Supplies and Services,02/09/2011,401452,903.38,REVENUE,Sahara Community Care Services
Peterborough City Council,Children's & Education Services - Children's Social Care,Family Support Services,Supplies and Services,02/09/2011,401453,580.68,REVENUE,Sahara Community Care Services
Peterborough City Council,Children's & Education Services - Children's Social Care,Children Looked After,Supplies and Services - Transfer Payments,02/09/2011,401460,2265.76,REVENUE,Lovell's Hall
Peterborough City Council,"Cultural, Environmental and Planning Services",Waste Collection,Supplies and Services,02/09/2011,401464,47609.86,REVENUE,Organic Recycling Ltd
Peterborough City Council,Adult Social Care,Other Adult Services,Supplies and Services,02/09/2011,401481,6872.11,REVENUE,Bridgegate Drug Services
Peterborough City Council,"Cultural, Environmental and Planning Services",Waste Collection,Supplies and Services,02/09/2011,401498,4800,REVENUE,AMCS UK Waste Management Solutions
Peterborough City Council,Children's & Education Services - Children's Social Care,Family Support Services,Supplies and Services,02/09/2011,401520,877.04,REVENUE,Danwood Group Limited
Peterborough City Council,"Highways, Roads & Transport Services",Highways/road (structural),Transport,02/09/2011,401521,2733.62,REVENUE,Atkins Limited
Peterborough City Council,Children's & Education Services - Children's Social Care,Support Services & Management Costs,Supplies and Services,02/09/2011,401551,2865.02,REVENUE,Psychology4Law Ltd
Peterborough City Council,Capital,Capital,Capital Pending Update to BS,02/09/2011,401552,54864.78,CAPITAL,Harmony Roofing Serv. Ltd
Peterborough City Council,Children's & Education Services - Children's Social Care,Other Children's & Families Services,Employees,02/09/2011,401570,1535.5,REVENUE,Blue Group International Ltd
Peterborough City Council,Housing Services,Homelessness,Supplies and Services,02/09/2011,401575,506,REVENUE,DA Rosalia Hotel
Peterborough City Council,Children's & Education Services - Education,Primary,Supplies and Services,02/09/2011,401580,2250,REVENUE,Redacted Personal Data
Peterborough City Council,Central Services to the Public,Elections,Supplies and Services,05/09/2011,394839,16662.84,REVENUE,East of England Showground Services Limited
Peterborough City Council,Central Services to the Public,Elections,Premises,05/09/2011,394862,-1762.5,REVENUE,East of England Showground Services Limited
Peterborough City Council,Children's & Education Services - Children's Social Care,Support Services & Management Costs,Supplies and Services,05/09/2011,397090,12450.6,REVENUE,Serco Ltd
Peterborough City Council,"Highways, Roads & Transport Services",Public Transport,Supplies and Services,05/09/2011,398387,1000.86,REVENUE,Veolia Transport UK Ltd
Peterborough City Council,Adult Social Care,Other Adult Services,Supplies and Services,05/09/2011,398531,13336.71,REVENUE,Cambs & P'boro NHS Foundation Trust
Peterborough City Council,Children's & Education Services - Education,Non-School Funding,Supplies and Services,05/09/2011,398781,737.62,REVENUE,CINTRA Ltd
Peterborough City Council,More than one Service Area Category,More than one Service Division,Supplies and Services,05/09/2011,398783,808.62,REVENUE,CINTRA Ltd
Peterborough City Council,Children's & Education Services - Children's Social Care,Other Children's & Families Services,Supplies and Services,05/09/2011,398784,1781.4,REVENUE,CINTRA Ltd
Peterborough City Council,Children's & Education Services - Children's Social Care,Children Looked After,Supplies and Services,05/09/2011,399446,9854.21,REVENUE,St Andrew's Healthcare
Peterborough City Council,Children's & Education Services - Children's Social Care,Other Children's & Families Services,Employees,05/09/2011,399448,1554,REVENUE,Blue Group International Ltd
Peterborough City Council,Children's & Education Services - Children's Social Care,Other Children's & Families Services,Employees,05/09/2011,399481,1665,REVENUE,Care Recruitment UK Ltd
Peterborough City Council,More than one Service Area Category,More than one Service Division,Supplies and Services,05/09/2011,399550,2835.27,REVENUE,Capita Business Services Ltd
Peterborough City Council,Capital,Capital,Capital Pending Update to BS,05/09/2011,399572,8143.82,CAPITAL,Sportsturf (Maintenance) Limited
Peterborough City Council,Support Services,Support Services,Supplies and Services,05/09/2011,399609,545.7,REVENUE,O2 (UK) Ltd
Peterborough City Council,Children's & Education Services - Education,Primary,Supplies and Services,05/09/2011,399753,1050,REVENUE,Redacted Personal Data
Peterborough City Council,Capital,Capital,Capital Pending Update to BS,05/09/2011,399779,566.52,CAPITAL,Stirling Maynard and Partners
Peterborough City Council,Children's & Education Services - Education,Secondary,Employees,05/09/2011,399783,1094.47,REVENUE,IIC by Education (P'boro) Ltd
Peterborough City Council,"Highways, Roads & Transport Services",Public Transport,Supplies and Services,05/09/2011,399900,7276.35,REVENUE,Stagecoach in Peterborough
Peterborough City Council,Housing Services,Homelessness,Employees,05/09/2011,399904,632.64,REVENUE,Anne Corder Recruitment
Peterborough City Council,Housing Services,Homelessness,Employees,05/09/2011,399906,624.73,REVENUE,Anne Corder Recruitment
Peterborough City Council,Housing Services,Homelessness,Employees,05/09/2011,399911,561.47,REVENUE,Anne Corder Recruitment
Peterborough City Council,Children's & Education Services - Children's Social Care,Children Looked After,Supplies and Services - Transfer Payments,05/09/2011,399985,10796,REVENUE,Lincoln House Childrens Services
Peterborough City Council,Children's & Education Services - Children's Social Care,Other Children's & Families Services,Employees,05/09/2011,400005,1687.2,REVENUE,Medicare First
Peterborough City Council,Children's & Education Services - Children's Social Care,Other Children's & Families Services,Supplies and Services,05/09/2011,400035,4800,REVENUE,Tri-x-Childcare Ltd
Peterborough City Council,"Highways, Roads & Transport Services",More than one Service Division,Supplies and Services,05/09/2011,400060,6000,REVENUE,Leicestershire County Council
Peterborough City Council,Capital,Capital,Capital Pending Update to BS,05/09/2011,400132,611.7,CAPITAL,Ringway Infrastructure Services
Peterborough City Council,Capital,Capital,Capital Pending Update to BS,05/09/2011,400133,533.7,CAPITAL,Ringway Infrastructure Services
Peterborough City Council,"Cultural, Environmental and Planning Services",Economic Development,Employees,05/09/2011,400218,2158.92,REVENUE,Hays Specialist Recruitment Ltd
Peterborough City Council,Children's & Education Services - Children's Social Care,Other Children's & Families Services,Employees,05/09/2011,400220,2465.76,REVENUE,Blue Group International Ltd
Peterborough City Council,Children's & Education Services - Children's Social Care,More than one Service Division,Supplies and Services,05/09/2011,400240,823.44,REVENUE,CINTRA Ltd
Peterborough City Council,"Cultural, Environmental and Planning Services",Economic Development,Employees,05/09/2011,400368,1003.2,REVENUE,Macdonald & Company
Peterborough City Council,Support Services,Support Services,Supplies and Services,05/09/2011,400369,793.5,REVENUE,DSM (GB) Ltd
Peterborough City Council,More than one Service Area Category,More than one Service Division,More than one Expenses Type,05/09/2011,400500,347943.3,"Mixture of Capital, Revenue and/or Balance Sheet",Ringway Infrastructure Services
Peterborough City Council,Children's & Education Services - Children's Social Care,Other Children's & Families Services,Supplies and Services,05/09/2011,400558,612.5,REVENUE,DA Rosalia Hotel
Peterborough City Council,Children's & Education Services - Children's Social Care,Family Support Services,Third Party Payments,05/09/2011,401138,72780.5,REVENUE,Peterborough Diocesan Family Care
Peterborough City Council,Children's & Education Services - Children's Social Care,Family Support Services,Third Party Payments,05/09/2011,401140,53833.25,REVENUE,Peterborough Diocesan Family Care
Peterborough City Council,Children's & Education Services - Children's Social Care,Family Support Services,Third Party Payments,05/09/2011,401141,63833.25,REVENUE,Peterborough Diocesan Family Care
Peterborough City Council,"Cultural, Environmental and Planning Services",Community Safety,Supplies and Services,05/09/2011,401212,2207.98,REVENUE,Quadrant Security Group Ltd
Peterborough City Council,Capital,Capital,Capital Pending Update to BS,05/09/2011,401346,4706.64,CAPITAL,Alban Shipping Ltd
Peterborough City Council,More than one Service Area Category,More than one Service Division,Balance Sheet,05/09/2011,401426,4694.65,Balance Sheet,Old Fletton Primary School
Peterborough City Council,More than one Service Area Category,More than one Service Division,Balance Sheet,05/09/2011,401440,1221.9,Balance Sheet,Browne Jacobson
Peterborough City Council,"Highways, Roads & Transport Services",Public Transport,Premises,05/09/2011,401443,7653.16,REVENUE,Jones Lang LaSalle
Peterborough City Council,More than one Service Area Category,More than one Service Division,Balance Sheet,05/09/2011,401446,4532.16,Balance Sheet,Redacted Personal Data
Peterborough City Council,Children's & Education Services - Education,Non-School Funding,Employees,05/09/2011,401462,1197,REVENUE,Haymarket Publishing Services Ltd
Peterborough City Council,Children's & Education Services - Children's Social Care,Children Looked After,Employees,05/09/2011,401479,579.26,REVENUE,Randstad Care Ltd
Peterborough City Council,Children's & Education Services - Children's Social Care,Other Children's & Families Services,Employees,05/09/2011,401567,1479.46,REVENUE,Blue Group International Ltd
Peterborough City Council,Children's & Education Services - Children's Social Care,Other Children's & Families Services,Employees,05/09/2011,401568,1658.78,REVENUE,Blue Group International Ltd
Peterborough City Council,Children's & Education Services - Children's Social Care,Other Children's & Families Services,Employees,05/09/2011,401571,1658.78,REVENUE,Blue Group International Ltd
Peterborough City Council,Children's & Education Services - Children's Social Care,Other Children's & Families Services,Employees,05/09/2011,401572,1658.78,REVENUE,Blue Group International Ltd
Peterborough City Council,Children's & Education Services - Education,Secondary,Supplies and Services,05/09/2011,401576,60000,REVENUE,Opportunity Peterborough
Peterborough City Council,Support Services,Support Services,Premises,05/09/2011,401579,8436,REVENUE,Debenham Tie Leung (DTZ)
Peterborough City Council,Housing Services,Homelessness,Supplies and Services,05/09/2011,401637,708.4,REVENUE,DA Rosalia Hotel
Peterborough City Council,Support Services,Support Services,Supplies and Services,05/09/2011,401650,15533.16,REVENUE,British Telecom PLC
Peterborough City Council,"Cultural, Environmental and Planning Services",Culture & Heritage,Supplies and Services,05/09/2011,401671,680,REVENUE,Redacted Personal Data
Peterborough City Council,"Cultural, Environmental and Planning Services",Recreation & Sport,Premises,05/09/2011,401692,1135.46,REVENUE,T Clarke East Limited
Peterborough City Council,Housing Services,Homelessness,Supplies and Services,05/09/2011,401698,1100,REVENUE,Oak County Property Management
Peterborough City Council,Housing Services,Homelessness,Supplies and Services,05/09/2011,401702,725,REVENUE,Letters Home Rentals
Peterborough City Council,Housing Services,Homelessness,Supplies and Services,05/09/2011,401706,549,REVENUE,Capitol Lettors
Peterborough City Council,Children's & Education Services - Education,Non-School Funding,Employees,05/09/2011,401709,24124.65,REVENUE,Teachers Pensions
Peterborough City Council,More than one Service Area Category,More than one Service Division,Balance Sheet,05/09/2011,401710,842095.65,Balance Sheet,Teachers Pensions
Peterborough City Council,Children's & Education Services - Children's Social Care,Children Looked After,More than one Expenses Type,05/09/2011,401712,675.45,REVENUE,Clare Lodge Secure Unit
Peterborough City Council,More than one Service Area Category,More than one Service Division,Balance Sheet,05/09/2011,401713,4397.59,Balance Sheet,The Prudential Assurance Company Ltd
Peterborough City Council,More than one Service Area Category,More than one Service Division,Balance Sheet,05/09/2011,401714,6287.02,Balance Sheet,Teachers Pensions
Peterborough City Council,More than one Service Area Category,More than one Service Division,Balance Sheet,05/09/2011,401715,8017.51,Balance Sheet,The Prudential Assurance Company Ltd
Peterborough City Council,Housing Services,Housing Benefits,Employees,05/09/2011,401726,9743.04,REVENUE,The Synergy Group
Peterborough City Council,Housing Services,Housing Benefits,Employees,05/09/2011,401728,10290.96,REVENUE,The Synergy Group
Peterborough City Council,Housing Services,Housing Benefits,Employees,05/09/2011,401729,11155.93,REVENUE,The Synergy Group
Peterborough City Council,Children's & Education Services - Children's Social Care,Other Children's & Families Services,Employees,07/09/2011,388496,1638.91,REVENUE,Sanctuary Personnel Ltd
Peterborough City Council,Support Services,Support Services,Premises,07/09/2011,389170,49695,REVENUE,Debenham Tie Leung (DTZ)
Peterborough City Council,More than one Service Area Category,More than one Service Division,More than one Expenses Type,07/09/2011,390280,5147,"Mixture of Capital, Revenue and/or Balance Sheet",Burmor Construction
Peterborough City Council,More than one Service Area Category,More than one Service Division,More than one Expenses Type,07/09/2011,390588,526.8,REVENUE,Lexis Nexis Uk
Peterborough City Council,Children's & Education Services - Children's Social Care,Children Looked After,Supplies and Services - Transfer Payments,07/09/2011,392508,788.55,REVENUE,Axiom Housing Association
Peterborough City Council,Support Services,Support Services,Supplies and Services,07/09/2011,394500,9420,REVENUE,4-5 Gray's Inn Square
Peterborough City Council,Support Services,Support Services,Employees,07/09/2011,395397,1066.16,REVENUE,Sacco Mann Ltd
Peterborough City Council,Support Services,Support Services,Employees,07/09/2011,396496,1031.21,REVENUE,Sacco Mann Ltd
Peterborough City Council,Support Services,Support Services,Employees,07/09/2011,397793,1223.46,REVENUE,Sacco Mann Ltd
Peterborough City Council,Support Services,Support Services,Employees,07/09/2011,398517,1223.46,REVENUE,Sacco Mann Ltd
Peterborough City Council,Children's & Education Services - Children's Social Care,Support Services & Management Costs,Supplies and Services,07/09/2011,398713,700,REVENUE,HM Courts and Tribunals Service (HMCTS)
Peterborough City Council,Children's & Education Services - Education,Secondary,Premises,07/09/2011,399410,3347.57,REVENUE,Npower Ltd
Peterborough City Council,Children's & Education Services - Education,Secondary,Premises,07/09/2011,399414,536.4,REVENUE,Npower Ltd
Peterborough City Council,Children's & Education Services - Children's Social Care,Support Services & Management Costs,Supplies and Services,07/09/2011,399443,660,REVENUE,Redacted Personal Data
Peterborough City Council,Children's & Education Services - Education,Non-School Funding,Employees,07/09/2011,399454,620,REVENUE,Redacted Personal Data
Peterborough City Council,Support Services,Support Services & Management Costs,Supplies and Services,07/09/2011,399588,2364.19,REVENUE,Everything Everywhere Ltd
Peterborough City Council,Children's & Education Services - Children's Social Care,Support Services & Management Costs,Supplies and Services,07/09/2011,399589,3545.34,REVENUE,Everything Everywhere Ltd
Peterborough City Council,Corporate & Democratic Core,Corporate Management,Supplies and Services,07/09/2011,399590,1438.73,REVENUE,Everything Everywhere Ltd
Peterborough City Council,Corporate & Democratic Core,Democratic Representation & Managemetn,Supplies and Services,07/09/2011,399606,692.62,REVENUE,Everything Everywhere Ltd
Peterborough City Council,More than one Service Area Category,More than one Service Division,Balance Sheet,07/09/2011,399649,634.45,Balance Sheet,Rossendales C B Ltd
Peterborough City Council,Children's & Education Services - Children's Social Care,Children Looked After,Supplies and Services - Transfer Payments,07/09/2011,399791,551.99,REVENUE,PC Homes
Peterborough City Council,Central Services to the Public,Local Tax,Employees,07/09/2011,399826,1766.4,REVENUE,The Synergy Group
Peterborough City Council,Support Services,Support Services,Employees,07/09/2011,399830,1120.5,REVENUE,Venn Group Ltd
Peterborough City Council,Housing Services,Housing Benefits,Employees,07/09/2011,399868,1248.72,REVENUE,The Synergy Group
Peterborough City Council,Housing Services,Housing Benefits,Employees,07/09/2011,399871,1241.5,REVENUE,The Synergy Group
Peterborough City Council,Housing Services,Housing Benefits,Employees,07/09/2011,399872,1065.6,REVENUE,The Synergy Group
Peterborough City Council,Housing Services,Housing Benefits,Employees,07/09/2011,399876,1126.01,REVENUE,The Synergy Group
Peterborough City Council,Housing Services,Housing Benefits,Employees,07/09/2011,399879,1476.7,REVENUE,The Synergy Group
Peterborough City Council,Children's & Education Services - Education,All Schools - apportion across sectors,Supplies and Services,07/09/2011,399908,2720,REVENUE,National Governors Association
Peterborough City Council,Children's & Education Services - Children's Social Care,Other Children's & Families Services,Employees,07/09/2011,399973,1665,REVENUE,Care Recruitment UK Ltd
Peterborough City Council,Children's & Education Services - Children's Social Care,Other Children's & Families Services,Employees,07/09/2011,399975,1609.5,REVENUE,Care Recruitment UK Ltd
Peterborough City Council,Children's & Education Services - Children's Social Care,Family Support Services,Supplies and Services,07/09/2011,399986,632.26,REVENUE,Sahara Community Care Services
Peterborough City Council,Capital,Capital,Capital Pending Update to BS,07/09/2011,399991,1812.13,CAPITAL,Haskoning UK Ltd
Peterborough City Council,Capital,Capital,Capital Pending Update to BS,07/09/2011,400016,200312.82,CAPITAL,Geoffrey Osborne Ltd
Peterborough City Council,"Cultural, Environmental and Planning Services",Regulatory services,Supplies and Services,07/09/2011,400045,720,REVENUE,PJH Law
Peterborough City Council,Support Services,Support Services & Management Costs,Employees,07/09/2011,400054,1370,REVENUE,City College Peterborough
Peterborough City Council,Support Services,Support Services,Supplies and Services,07/09/2011,400056,2757.6,REVENUE,Capita Business Services Ltd
Peterborough City Council,Children's & Education Services - Education,Non-School Funding,Employees,07/09/2011,400062,4811.4,REVENUE,Top Class Tutors
Peterborough City Council,Children's & Education Services - Education,Secondary,Employees,07/09/2011,400081,2640,REVENUE,Top Class Tutors
Peterborough City Council,"Highways, Roads & Transport Services",Traffic management & Road Safety,Supplies and Services,07/09/2011,400136,540,REVENUE,Dynamic Advertising Group
Peterborough City Council,Children's & Education Services - Children's Social Care,Children's Services - Commissioning and Social Work,Third Party Payments,07/09/2011,400138,4582,REVENUE,DRINKSENSE
Peterborough City Council,Support Services,Support Services,Employees,07/09/2011,400143,1131.35,REVENUE,Law Absolute (PS2) Ltd
Peterborough City Council,Children's & Education Services - Children's Social Care,Support Services & Management Costs,Supplies and Services,07/09/2011,400176,700,REVENUE,HM Courts and Tribunals Service (HMCTS)
Peterborough City Council,Housing Services,Housing Benefits,Employees,07/09/2011,400239,981.65,REVENUE,The Synergy Group
Peterborough City Council,More than one Service Area Category,More than one Service Division,Supplies and Services,07/09/2011,400288,1401.46,REVENUE,TNT Post Midlands Ltd
Peterborough City Council,Children's & Education Services - Education,Non-School Funding,Supplies and Services,07/09/2011,400297,1440,REVENUE,Top Class Tutors
Peterborough City Council,Children's & Education Services - Education,Non-School Funding,Supplies and Services,07/09/2011,400299,1440,REVENUE,Top Class Tutors
Peterborough City Council,Children's & Education Services - Education,Non-School Funding,Supplies and Services,07/09/2011,400301,1440,REVENUE,Top Class Tutors
Peterborough City Council,"Highways, Roads & Transport Services","Transport planning, policy and strategy",Employees,07/09/2011,400303,1404,REVENUE,Hays Specialist Recruitment Ltd
Peterborough City Council,"Cultural, Environmental and Planning Services",Economic Development,Employees,07/09/2011,400306,1868.4,REVENUE,Hays Specialist Recruitment Ltd
Peterborough City Council,"Cultural, Environmental and Planning Services",Economic Development,Employees,07/09/2011,400308,1425.6,REVENUE,Hays Specialist Recruitment Ltd
Peterborough City Council,Children's & Education Services - Children's Social Care,Support Services & Management Costs,Supplies and Services,07/09/2011,400315,700,REVENUE,HM Courts and Tribunals Service (HMCTS)
Peterborough City Council,Deficit/(Surplus) on Trading Undertakings,Trading Account Surpluses & Deficits,Premises,07/09/2011,400340,6600,REVENUE,Anglia Support Partnership
Peterborough City Council,"Cultural, Environmental and Planning Services",Economic Development,Employees,07/09/2011,400370,947.11,REVENUE,Hays Specialist Recruitment Ltd
Peterborough City Council,Children's & Education Services - Children's Social Care,Family Support Services,Employees,07/09/2011,400371,1045.62,REVENUE,Swim
Peterborough City Council,"Cultural, Environmental and Planning Services",Economic Development,Employees,07/09/2011,400376,1323.9,REVENUE,Randstad CPE
Peterborough City Council,Children's & Education Services - Children's Social Care,Other Children's & Families Services,Employees,07/09/2011,400377,1239.54,REVENUE,Capita Resourcing Ltd
Peterborough City Council,Capital,Capital,Capital Pending Update to BS,07/09/2011,400378,1463.96,CAPITAL,Stirling Maynard and Partners
Peterborough City Council,Children's & Education Services - Education,Non-School Funding,Supplies and Services,07/09/2011,400379,1440,REVENUE,Top Class Tutors
Peterborough City Council,Children's & Education Services - Education,Non-School Funding,Supplies and Services,07/09/2011,400380,960,REVENUE,Top Class Tutors
Peterborough City Council,Children's & Education Services - Children's Social Care,Children Looked After,Supplies and Services - Transfer Payments,07/09/2011,400486,11200,REVENUE,Amegreen
Peterborough City Council,Adult Social Care,Adult Social Care,Supplies and Services,07/09/2011,400498,309061.41,REVENUE,Peterborough Provider Services
Peterborough City Council,Support Services,Support Services,Supplies and Services,07/09/2011,400533,5460,REVENUE,Ntrinsic Consulting Europe Ltd
Peterborough City Council,Children's & Education Services - Children's Social Care,Support Services & Management Costs,Supplies and Services,07/09/2011,400618,600,REVENUE,Redacted Personal Data
Peterborough City Council,"Cultural, Environmental and Planning Services",Economic Development,Third Party Payments,07/09/2011,400624,700,REVENUE,Loxley Community Association
Peterborough City Council,Capital,Capital,Capital Pending Update to BS,07/09/2011,400625,2689.44,CAPITAL,Anglian Water Services Ltd
Peterborough City Council,"Cultural, Environmental and Planning Services",Economic Development,Third Party Payments,07/09/2011,400638,700,REVENUE,Eye Community Association
Peterborough City Council,"Cultural, Environmental and Planning Services",Economic Development,Third Party Payments,07/09/2011,400639,700,REVENUE,Italian Community Association
Peterborough City Council,"Cultural, Environmental and Planning Services",Economic Development,Third Party Payments,07/09/2011,400640,700,REVENUE,Woodston Community Association
Peterborough City Council,"Cultural, Environmental and Planning Services",Economic Development,Third Party Payments,07/09/2011,400641,700,REVENUE,Werrington Community Association
Peterborough City Council,"Cultural, Environmental and Planning Services",Community Development,Supplies and Services,07/09/2011,400646,1250,REVENUE,Physically Handicapped Social & Comforts Fund
Peterborough City Council,"Cultural, Environmental and Planning Services",Economic Development,Third Party Payments,07/09/2011,400658,700,REVENUE,Bharat Hindu Samaj
Peterborough City Council,Deficit/(Surplus) on Trading Undertakings,Trading Account Surpluses & Deficits,Supplies and Services,07/09/2011,400679,12240.31,REVENUE,The Department for Transport
Peterborough City Council,Children's & Education Services - Children's Social Care,Support Services & Management Costs,Supplies and Services,07/09/2011,400682,675.15,REVENUE,Redacted Personal Data
Peterborough City Council,"Cultural, Environmental and Planning Services",Economic Development,Employees,07/09/2011,400688,1332,REVENUE,Hays Specialist Recruitment Ltd
Peterborough City Council,Housing Services,Private Sector Housing Renewal,Supplies and Services,07/09/2011,400690,824.5,REVENUE,Fletton Electrics Ltd
Peterborough City Council,"Cultural, Environmental and Planning Services",Culture & Heritage,Supplies and Services,07/09/2011,400712,700,REVENUE,Redacted Personal Data
Peterborough City Council,"Cultural, Environmental and Planning Services",Culture & Heritage,Employees,07/09/2011,401137,600,REVENUE,The Morton Patnership
Peterborough City Council,Children's & Education Services - Children's Social Care,Family Support Services,Supplies and Services,07/09/2011,401144,862.8,REVENUE,P F S Builders & Contractors
Peterborough City Council,Children's & Education Services - Children's Social Care,Support Services & Management Costs,Employees,07/09/2011,401244,1688,REVENUE,Anglia Ruskin University
Peterborough City Council,Children's & Education Services - Children's Social Care,Support Services & Management Costs,Employees,07/09/2011,401245,1688,REVENUE,Anglia Ruskin University
Peterborough City Council,Children's & Education Services - Children's Social Care,Support Services & Management Costs,Employees,07/09/2011,401246,1688,REVENUE,Anglia Ruskin University
Peterborough City Council,Children's & Education Services - Children's Social Care,Support Services & Management Costs,Employees,07/09/2011,401247,1688,REVENUE,Anglia Ruskin University
Peterborough City Council,Children's & Education Services - Children's Social Care,Support Services & Management Costs,Employees,07/09/2011,401248,1688,REVENUE,Anglia Ruskin University
Peterborough City Council,Corporate & Democratic Core,Democratic Representation & Managemetn,Supplies and Services,07/09/2011,401249,3180,REVENUE,Cambridgeshire County Council
Peterborough City Council,Capital,Capital,Capital Pending Update to BS,07/09/2011,401354,40597.2,CAPITAL,MARS (Construction) Ltd
Peterborough City Council,Children's & Education Services - Children's Social Care,Other Children's & Families Services,Employees,07/09/2011,401381,1821.73,REVENUE,Randstad Care Ltd
Peterborough City Council,Children's & Education Services - Children's Social Care,Other Children's & Families Services,Employees,07/09/2011,401382,1821.73,REVENUE,Randstad Care Ltd
Peterborough City Council,Children's & Education Services - Children's Social Care,Other Children's & Families Services,Employees,07/09/2011,401384,1821.73,REVENUE,Randstad Care Ltd
Peterborough City Council,Children's & Education Services - Children's Social Care,Other Children's & Families Services,Employees,07/09/2011,401385,1821.73,REVENUE,Randstad Care Ltd
Peterborough City Council,Children's & Education Services - Children's Social Care,Other Children's & Families Services,Employees,07/09/2011,401387,804.02,REVENUE,Randstad Care Ltd
Peterborough City Council,Children's & Education Services - Children's Social Care,Other Children's & Families Services,Employees,07/09/2011,401388,1206.29,REVENUE,Randstad Care Ltd
Peterborough City Council,Support Services,Support Services,Employees,07/09/2011,401399,1136.08,REVENUE,Sacco Mann Ltd
Peterborough City Council,Children's & Education Services - Children's Social Care,Children Looked After,Employees,07/09/2011,401472,589.68,REVENUE,Randstad Care Ltd
Peterborough City Council,Corporate & Democratic Core,Democratic Representation & Managemetn,Supplies and Services,07/09/2011,401500,2800,REVENUE,J's Catering
Peterborough City Council,"Cultural, Environmental and Planning Services",Street Cleansing,Transport,07/09/2011,401673,660,REVENUE,SG Equipment Finance Ltd
Peterborough City Council,Deficit/(Surplus) on Trading Undertakings,Trading Account Surpluses & Deficits,Transport,07/09/2011,401674,1260,REVENUE,SG Equipment Finance Ltd
Peterborough City Council,"Cultural, Environmental and Planning Services",Street Cleansing,Transport,07/09/2011,401676,600,REVENUE,SG Equipment Finance Ltd
Peterborough City Council,Deficit/(Surplus) on Trading Undertakings,Trading Account Surpluses & Deficits,Transport,07/09/2011,401677,840,REVENUE,SG Equipment Finance Ltd
Peterborough City Council,"Cultural, Environmental and Planning Services",Street Cleansing,Transport,07/09/2011,401682,660,REVENUE,SG Equipment Finance Ltd
Peterborough City Council,Children's & Education Services - Children's Social Care,Support Services & Management Costs,Supplies and Services,07/09/2011,401687,900,REVENUE,Redacted Personal Data
Peterborough City Council,Children's & Education Services - Children's Social Care,Support Services & Management Costs,Supplies and Services,07/09/2011,401689,825,REVENUE,Redacted Personal Data
Peterborough City Council,Children's & Education Services - Education,Non-School Funding,Supplies and Services,07/09/2011,401717,775.8,REVENUE,Kindercare Pre-School Ltd
Peterborough City Council,Children's & Education Services - Children's Social Care,Support Services & Management Costs,Supplies and Services,07/09/2011,401723,999.75,REVENUE,Beech Clinic
Peterborough City Council,More than one Service Area Category,More than one Service Division,Balance Sheet,07/09/2011,401724,8000,Balance Sheet,Graysons Solicitors
Peterborough City Council,Support Services,Support Services,Supplies and Services,07/09/2011,401730,15000,REVENUE,Postage By Phone - Pitney Bowes Ltd
Peterborough City Council,Children's & Education Services - Children's Social Care,Family Support Services,Supplies and Services,07/09/2011,401781,593.79,REVENUE,Findel Education Ltd
Peterborough City Council,Children's & Education Services - Children's Social Care,Children Looked After,Supplies and Services - Transfer Payments,07/09/2011,401784,5785.71,REVENUE,Alliance Foster Care
Peterborough City Council,Deficit/(Surplus) on Trading Undertakings,Trading Account Surpluses & Deficits,Supplies and Services,07/09/2011,401785,1053.36,REVENUE,Barron Clark Castings Ltd
Peterborough City Council,Deficit/(Surplus) on Trading Undertakings,Trading Account Surpluses & Deficits,Supplies and Services,07/09/2011,401786,1408.32,REVENUE,Barron Clark Castings Ltd
Peterborough City Council,Deficit/(Surplus) on Trading Undertakings,Trading Account Surpluses & Deficits,Supplies and Services,07/09/2011,401792,704.16,REVENUE,Barron Clark Castings Ltd
Peterborough City Council,More than one Service Area Category,More than one Service Division,Balance Sheet,07/09/2011,401793,1500,Balance Sheet,Gisby Harrison Solicitors
Peterborough City Council,Children's & Education Services - Children's Social Care,Children Looked After,Supplies and Services - Transfer Payments,07/09/2011,401798,19729.28,REVENUE,Oracle Care Ltd (Region 2)
Peterborough City Council,Children's & Education Services - Children's Social Care,Children Looked After,Supplies and Services - Transfer Payments,07/09/2011,401801,20825.35,REVENUE,Oracle Care Ltd (Region 2)
Peterborough City Council,"Cultural, Environmental and Planning Services",Community Development,Supplies and Services,07/09/2011,401802,1250,REVENUE,Woodston Community Association
Peterborough City Council,More than one Service Area Category,More than one Service Division,Balance Sheet,07/09/2011,401809,2750,Balance Sheet,Redacted Personal Data
Peterborough City Council,More than one Service Area Category,More than one Service Division,Balance Sheet,07/09/2011,401811,6250,Balance Sheet,Quality Solicitors Carters
Peterborough City Council,"Cultural, Environmental and Planning Services",Community Safety (CCTV),Supplies and Services,07/09/2011,401818,8892.16,REVENUE,Quadrant Security Group Ltd
Peterborough City Council,Support Services,Support Services,Premises,07/09/2011,401819,2780,REVENUE,Dept for Work & Pensions
Peterborough City Council,More than one Service Area Category,More than one Service Division,More than one Expenses Type,07/09/2011,401821,596.35,REVENUE,Redacted Personal Data
Peterborough City Council,Children's & Education Services - Children's Social Care,Children Looked After,Transport,07/09/2011,401822,1051.65,REVENUE,Redacted Personal Data
Peterborough City Council,Children's & Education Services - Children's Social Care,Children Looked After,Transport,07/09/2011,401823,1655.1,REVENUE,Redacted Personal Data
Peterborough City Council,Children's & Education Services - Children's Social Care,Children Looked After,Transport,07/09/2011,401825,612.45,REVENUE,Redacted Personal Data
Peterborough City Council,Children's & Education Services - Children's Social Care,Children Looked After,More than one Expenses Type,07/09/2011,401826,1048.65,REVENUE,Redacted Personal Data
Peterborough City Council,More than one Service Area Category,More than one Service Division,More than one Expenses Type,07/09/2011,401830,5802,"Mixture of Capital, Revenue and/or Balance Sheet",Allworks Home Improvements Ltd
Peterborough City Council,More than one Service Area Category,More than one Service Division,More than one Expenses Type,07/09/2011,401831,2949,"Mixture of Capital, Revenue and/or Balance Sheet",Allworks Home Improvements Ltd
Peterborough City Council,More than one Service Area Category,More than one Service Division,More than one Expenses Type,07/09/2011,401833,2168,"Mixture of Capital, Revenue and/or Balance Sheet",Morley Building Services
Peterborough City Council,More than one Service Area Category,More than one Service Division,More than one Expenses Type,07/09/2011,401834,4075,"Mixture of Capital, Revenue and/or Balance Sheet",Morley Building Services
Peterborough City Council,More than one Service Area Category,More than one Service Division,More than one Expenses Type,07/09/2011,401835,4316,"Mixture of Capital, Revenue and/or Balance Sheet",M J Greaves
Peterborough City Council,More than one Service Area Category,More than one Service Division,More than one Expenses Type,07/09/2011,401840,13360.4,"Mixture of Capital, Revenue and/or Balance Sheet",Morley Building Services
Peterborough City Council,Capital,Capital,Capital Pending Update to BS,07/09/2011,401841,527960.4,CAPITAL,MARS (Construction) Ltd
Peterborough City Council,More than one Service Area Category,More than one Service Division,More than one Expenses Type,07/09/2011,401848,2702.98,"Mixture of Capital, Revenue and/or Balance Sheet",Allworks Home Improvements Ltd
Peterborough City Council,More than one Service Area Category,More than one Service Division,More than one Expenses Type,07/09/2011,401850,3644.55,"Mixture of Capital, Revenue and/or Balance Sheet",Rawheat Heating & Plumbing Eng.
Peterborough City Council,Capital,Capital,Capital Pending Update to BS,07/09/2011,401851,10448.4,CAPITAL,Quadrant Security Group Ltd
Peterborough City Council,More than one Service Area Category,More than one Service Division,More than one Expenses Type,07/09/2011,401852,6690,"Mixture of Capital, Revenue and/or Balance Sheet",Allworks Home Improvements Ltd
Peterborough City Council,Capital,Capital,Capital Pending Update to BS,07/09/2011,401858,41808,CAPITAL,Quadrant Security Group Ltd
Peterborough City Council,Children's & Education Services - Education,Non-School Funding,Supplies and Services,07/09/2011,401863,750.96,REVENUE,Redacted Personal Data
Peterborough City Council,More than one Service Area Category,More than one Service Division,More than one Expenses Type,07/09/2011,401910,4425,"Mixture of Capital, Revenue and/or Balance Sheet",EMS Stairlifts
Peterborough City Council,More than one Service Area Category,More than one Service Division,More than one Expenses Type,07/09/2011,401930,3645,"Mixture of Capital, Revenue and/or Balance Sheet",The Mobility Equipment Company
Peterborough City Council,More than one Service Area Category,More than one Service Division,More than one Expenses Type,07/09/2011,401931,3895,"Mixture of Capital, Revenue and/or Balance Sheet",Obam Domestic Lift Services Ltd
Peterborough City Council,More than one Service Area Category,More than one Service Division,More than one Expenses Type,07/09/2011,401932,1355,"Mixture of Capital, Revenue and/or Balance Sheet",The Mobility Equipment Company
Peterborough City Council,More than one Service Area Category,More than one Service Division,More than one Expenses Type,07/09/2011,401934,1455,"Mixture of Capital, Revenue and/or Balance Sheet",The Mobility Equipment Company
Peterborough City Council,More than one Service Area Category,More than one Service Division,More than one Expenses Type,07/09/2011,401950,2612,"Mixture of Capital, Revenue and/or Balance Sheet",S R K Engineering
Peterborough City Council,More than one Service Area Category,More than one Service Division,More than one Expenses Type,07/09/2011,401952,4175,"Mixture of Capital, Revenue and/or Balance Sheet",EMS Stairlifts
Peterborough City Council,More than one Service Area Category,More than one Service Division,More than one Expenses Type,07/09/2011,401953,3640,"Mixture of Capital, Revenue and/or Balance Sheet",Dolphin Mobility East Midlands Ltd
Peterborough City Council,More than one Service Area Category,More than one Service Division,More than one Expenses Type,07/09/2011,401954,5795,"Mixture of Capital, Revenue and/or Balance Sheet",EMS Stairlifts
Peterborough City Council,More than one Service Area Category,More than one Service Division,More than one Expenses Type,07/09/2011,401956,4555,"Mixture of Capital, Revenue and/or Balance Sheet",EMS Stairlifts
Peterborough City Council,More than one Service Area Category,More than one Service Division,More than one Expenses Type,07/09/2011,401975,3555,"Mixture of Capital, Revenue and/or Balance Sheet",The Mobility Equipment Company
Peterborough City Council,More than one Service Area Category,More than one Service Division,More than one Expenses Type,07/09/2011,401976,1490,"Mixture of Capital, Revenue and/or Balance Sheet",Dolphin Mobility East Midlands Ltd
Peterborough City Council,More than one Service Area Category,More than one Service Division,More than one Expenses Type,07/09/2011,401977,1675,"Mixture of Capital, Revenue and/or Balance Sheet",EMS Stairlifts
Peterborough City Council,More than one Service Area Category,More than one Service Division,More than one Expenses Type,07/09/2011,401978,8698.2,"Mixture of Capital, Revenue and/or Balance Sheet",Retrofit UK Ltd
Peterborough City Council,Children's & Education Services - Children's Social Care,Children Looked After,Supplies and Services - Transfer Payments,07/09/2011,401993,726.31,REVENUE,Redacted Personal Data
Peterborough City Council,Children's & Education Services - Children's Social Care,Other Children's & Families Services,Third Party Payments,07/09/2011,402031,6803.75,REVENUE,Peterborough Womens Aid
Peterborough City Council,Children's & Education Services - Education,Non-School Funding,Supplies and Services,07/09/2011,402052,2200,REVENUE,Redacted Personal Data
Peterborough City Council,Court Services,Coroner's Court Service,Supplies and Services,07/09/2011,402062,5448.92,REVENUE,Coroners Service
Peterborough City Council,Children's & Education Services - Children's Social Care,Other Children's & Families Services,Supplies and Services - Transfer Payments,07/09/2011,402067,2672.91,REVENUE,Redacted Personal Data
Peterborough City Council,Children's & Education Services - Children's Social Care,Other Children's & Families Services,Supplies and Services - Transfer Payments,07/09/2011,402069,710.08,REVENUE,Redacted Personal Data
Peterborough City Council,Deficit/(Surplus) on Trading Undertakings,Trading Account Surpluses & Deficits,Transport,07/09/2011,402073,1656,REVENUE,Stagecoach in Peterborough
Peterborough City Council,Deficit/(Surplus) on Trading Undertakings,Trading Account Surpluses & Deficits,Transport,07/09/2011,402075,1656,REVENUE,Stagecoach in Peterborough
Peterborough City Council,Deficit/(Surplus) on Trading Undertakings,Trading Account Surpluses & Deficits,Transport,07/09/2011,402076,1656,REVENUE,Stagecoach in Peterborough
Peterborough City Council,Adult Social Care,Adult Social Care,Third Party Payments,07/09/2011,402081,3305909.1,REVENUE,Peterborough PCT
Peterborough City Council,More than one Service Area Category,More than one Service Division,More than one Expenses Type,07/09/2011,402101,1297.94,REVENUE,Peterborough City Council
Peterborough City Council,Capital,Capital,Capital Pending Update to BS,07/09/2011,402123,365091.6,CAPITAL,PG Robinson t/a PGR Construction
Peterborough City Council,Children's & Education Services - Children's Social Care,More than one Service Division,Supplies and Services,07/09/2011,402125,1086.11,REVENUE,Children & Families Looked After Children
Peterborough City Council,Children's & Education Services - Children's Social Care,More than one Service Division,More than one Expenses Type,07/09/2011,402126,1033.56,REVENUE,Children & Families Looked After Children
Peterborough City Council,Children's & Education Services - Children's Social Care,More than one Service Division,More than one Expenses Type,07/09/2011,402127,1540.67,REVENUE,Children & Families Looked After Children
Peterborough City Council,More than one Service Area Category,More than one Service Division,Balance Sheet,08/09/2011,398325,560,Balance Sheet,Her Majesty's Revenue and Customs
Peterborough City Council,More than one Service Area Category,More than one Service Division,Balance Sheet,08/09/2011,398677,987.8,Balance Sheet,Her Majesty's Revenue and Customs
Peterborough City Council,More than one Service Area Category,More than one Service Division,Supplies and Services,09/09/2011,387341,10639.2,REVENUE,Continuum Care & Educ. Group.
Peterborough City Council,Children's & Education Services - Children's Social Care,Family Support Services,Supplies and Services,09/09/2011,388233,704,REVENUE,Goldsborough Homecare
Peterborough City Council,Children's & Education Services - Children's Social Care,Family Support Services,Supplies and Services,09/09/2011,388237,704,REVENUE,Goldsborough Homecare
Peterborough City Council,Children's & Education Services - Children's Social Care,Family Support Services,Supplies and Services,09/09/2011,388239,704,REVENUE,Goldsborough Homecare
Peterborough City Council,Children's & Education Services - Children's Social Care,Family Support Services,Supplies and Services,09/09/2011,388241,704,REVENUE,Goldsborough Homecare
Peterborough City Council,"Cultural, Environmental and Planning Services",Waste Collection,Supplies and Services,09/09/2011,395081,3670.8,REVENUE,APSE
Peterborough City Council,Capital,Capital,Capital Pending Update to BS,09/09/2011,396115,6919.12,CAPITAL,Atkins Limited
Peterborough City Council,"Highways, Roads & Transport Services","Transport planning, policy and strategy",Transport,09/09/2011,396135,798,REVENUE,Atkins Limited
Peterborough City Council,Children's & Education Services - Children's Social Care,Children Looked After,Supplies and Services - Transfer Payments,09/09/2011,396539,11957.01,REVENUE,Continuum Care & Educ. Group.
Peterborough City Council,Capital,Capital,Capital Pending Update to BS,09/09/2011,396875,1293.82,CAPITAL,Atkins Limited
Peterborough City Council,Capital,Capital,Capital Pending Update to BS,09/09/2011,396881,5507.94,CAPITAL,Atkins Limited
Peterborough City Council,"Highways, Roads & Transport Services","Transport planning, policy and strategy",Transport,09/09/2011,398475,2088.58,REVENUE,Atkins Limited
Peterborough City Council,Capital,Capital,Capital Pending Update to BS,09/09/2011,398603,2939.06,CAPITAL,Atkins Limited
Peterborough City Council,Children's & Education Services - Children's Social Care,Children Looked After,Supplies and Services - Transfer Payments,09/09/2011,398934,1079.16,REVENUE,IAS TACT
Peterborough City Council,"Highways, Roads & Transport Services","Transport planning, policy and strategy",Transport,09/09/2011,400280,2329.85,REVENUE,Atkins Limited
Peterborough City Council,Deficit/(Surplus) on Trading Undertakings,Trading Account Surpluses & Deficits,Supplies and Services,09/09/2011,400311,1116.61,REVENUE,Danwood Contract Rentals
Peterborough City Council,"Cultural, Environmental and Planning Services",Recreation & Sport,Supplies and Services,09/09/2011,401232,720,REVENUE,Natmag-Rodale Ltd
Peterborough City Council,Capital,Capital,Capital Pending Update to BS,09/09/2011,401510,1164.37,CAPITAL,Atkins Limited
Peterborough City Council,Capital,Capital,Capital Pending Update to BS,09/09/2011,401512,998.08,CAPITAL,Atkins Limited
Peterborough City Council,Capital,Capital,Capital Pending Update to BS,09/09/2011,401513,2985.7,CAPITAL,Atkins Limited
Peterborough City Council,"Cultural, Environmental and Planning Services",Support Services & Management Costs,Supplies and Services,09/09/2011,401807,1220.27,REVENUE,Vivacity Culture and Leisure
Peterborough City Council,"Cultural, Environmental and Planning Services",Support Services & Management Costs,Employees,09/09/2011,401814,1401.92,REVENUE,Vivacity Culture and Leisure
Peterborough City Council,"Cultural, Environmental and Planning Services",Support Services & Management Costs,Employees,09/09/2011,401815,2256,REVENUE,Vivacity Culture and Leisure
Peterborough City Council,"Cultural, Environmental and Planning Services",Support Services & Management Costs,Employees,09/09/2011,401817,524.24,REVENUE,Vivacity Culture and Leisure
Peterborough City Council,More than one Service Area Category,More than one Service Division,Balance Sheet,09/09/2011,401885,9750,Balance Sheet,Barnack Parish Council
Peterborough City Council,More than one Service Area Category,More than one Service Division,Balance Sheet,09/09/2011,401962,1791.6,Balance Sheet,Ken Stimpson Community School
Peterborough City Council,Support Services,Support Services,Premises,09/09/2011,401963,901.67,REVENUE,St Thomas More RC Primary School
Peterborough City Council,Deficit/(Surplus) on Trading Undertakings,Trading Account Surpluses & Deficits,Transport,09/09/2011,402074,1656,REVENUE,Stagecoach in Peterborough
Peterborough City Council,Central Services to the Public,Elections,Supplies and Services,09/09/2011,402108,700,REVENUE,Lexis Nexis Uk
Peterborough City Council,Children's & Education Services - Children's Social Care,Family Support Services,Supplies and Services - Transfer Payments,09/09/2011,402210,609.78,REVENUE,Cherry Lodge
Peterborough City Council,Children's & Education Services - Children's Social Care,Family Support Services,More than one Expenses Type,09/09/2011,402212,1155.78,REVENUE,Cherry Lodge
Peterborough City Council,Support Services,Support Services,Premises,09/09/2011,402331,564,REVENUE,Siemens Energy Services Ltd
Peterborough City Council,Support Services,Support Services,Premises,09/09/2011,402333,890.63,REVENUE,British Gas Business
Peterborough City Council,Support Services,Support Services,Premises,09/09/2011,402334,4977.29,REVENUE,Southern Electric
Peterborough City Council,More than one Service Area Category,More than one Service Division,Balance Sheet,09/09/2011,402342,2884.74,Balance Sheet,The Kings School
Peterborough City Council,"Cultural, Environmental and Planning Services",Community Development,Supplies and Services,09/09/2011,402343,1000,REVENUE,Westwood Residents Association
Peterborough City Council,Support Services,Support Services,Premises,09/09/2011,402344,2999,REVENUE,Stanground College
Peterborough City Council,"Cultural, Environmental and Planning Services",Community Development,Supplies and Services,09/09/2011,402345,750,REVENUE,West Ward Bowls Club
Peterborough City Council,Children's & Education Services - Children's Social Care,Family Support Services,Supplies and Services,09/09/2011,402350,712,REVENUE,Goldsborough Homecare
Peterborough City Council,Children's & Education Services - Children's Social Care,Family Support Services,Supplies and Services,09/09/2011,402351,704,REVENUE,Goldsborough Homecare
Peterborough City Council,Children's & Education Services - Children's Social Care,Family Support Services,Supplies and Services,09/09/2011,402370,704,REVENUE,Goldsborough Homecare
Peterborough City Council,Children's & Education Services - Children's Social Care,Family Support Services,Supplies and Services,09/09/2011,402390,704,REVENUE,Goldsborough Homecare
Peterborough City Council,Children's & Education Services - Children's Social Care,Family Support Services,Supplies and Services,09/09/2011,402410,704,REVENUE,Goldsborough Homecare
Peterborough City Council,Children's & Education Services - Children's Social Care,Family Support Services,Supplies and Services,09/09/2011,402430,704,REVENUE,Goldsborough Homecare
Peterborough City Council,"Cultural, Environmental and Planning Services",Community Development,Supplies and Services,09/09/2011,402431,1200,REVENUE,Nene District Scout Council
Peterborough City Council,Capital,Capital,Capital Pending Update to BS,09/09/2011,402433,6283.2,CAPITAL,Benchmark Contracts Ltd
Peterborough City Council,"Cultural, Environmental and Planning Services",Community Development,Supplies and Services,09/09/2011,402436,750,REVENUE,Hartwell Court Social
Peterborough City Council,Children's & Education Services - Education,Non-School Funding,Supplies and Services,09/09/2011,402671,10921.2,REVENUE,Early Years Day Nursery
Peterborough City Council,"Cultural, Environmental and Planning Services",Community Development,Supplies and Services,09/09/2011,402688,1250,REVENUE,The Voyager School
Peterborough City Council,Support Services,Support Services,Premises,09/09/2011,402709,5318.42,REVENUE,EDF Energy Networks Ltd
Peterborough City Council,Support Services,Support Services,Premises,09/09/2011,402712,2990.28,REVENUE,Eastern Shires Purchasing Organisation
Peterborough City Council,Support Services,Support Services,Premises,09/09/2011,402713,3041.51,REVENUE,Eastern Shires Purchasing Organisation
Peterborough City Council,Support Services,Support Services,Premises,09/09/2011,402714,985.04,REVENUE,Southern Electric
Peterborough City Council,Children's & Education Services - Children's Social Care,More than one Service Division,Supplies and Services,09/09/2011,402738,1036.26,REVENUE,Children & Families Looked After Children
Peterborough City Council,Children's & Education Services - Children's Social Care,More than one Service Division,More than one Expenses Type,09/09/2011,402740,1053.08,REVENUE,Children & Families Looked After Children
Peterborough City Council,More than one Service Area Category,More than one Service Division,More than one Expenses Type,09/09/2011,402797,822.58,REVENUE,Clare Lodge Secure Unit
Peterborough City Council,Children's & Education Services - Children's Social Care,Children Looked After,Transport,09/09/2011,402813,694.8,REVENUE,Redacted Personal Data
Peterborough City Council,More than one Service Area Category,More than one Service Division,Transport,09/09/2011,402814,714.15,REVENUE,Redacted Personal Data
Peterborough City Council,Children's & Education Services - Children's Social Care,Children Looked After,Transport,09/09/2011,402815,1682.4,REVENUE,Redacted Personal Data
Peterborough City Council,Children's & Education Services - Children's Social Care,Children Looked After,Transport,09/09/2011,402816,513.9,REVENUE,Redacted Personal Data
Peterborough City Council,Children's & Education Services - Children's Social Care,Children Looked After,Transport,09/09/2011,402818,1315.8,REVENUE,Redacted Personal Data
Peterborough City Council,Housing Services,Housing Benefits,Employees,12/09/2011,388168,1051.2,REVENUE,The Synergy Group
Peterborough City Council,Children's & Education Services - Children's Social Care,Children Looked After,Supplies and Services - Transfer Payments,12/09/2011,388598,3556.01,REVENUE,Foster Care Associates Ltd FCA
Peterborough City Council,Children's & Education Services - Children's Social Care,Other Children's & Families Services,Employees,12/09/2011,389104,1894.99,REVENUE,Sanctuary Personnel Ltd
Peterborough City Council,"Cultural, Environmental and Planning Services",Community Development,Supplies and Services,12/09/2011,390414,682.61,REVENUE,Triple SSS Limited
Peterborough City Council,Capital,Capital,Capital Pending Update to BS,12/09/2011,392814,2133.6,CAPITAL,Bull & Co Ltd
Peterborough City Council,Children's & Education Services - Children's Social Care,Children Looked After,Supplies and Services - Transfer Payments,12/09/2011,393295,3441.3,REVENUE,Foster Care Associates Ltd FCA
Peterborough City Council,Housing Services,Housing Benefits,Employees,12/09/2011,394126,1170,REVENUE,The Synergy Group
Peterborough City Council,Housing Services,Housing Benefits,Employees,12/09/2011,396418,1065.6,REVENUE,The Synergy Group
Peterborough City Council,Housing Services,Housing Benefits,Employees,12/09/2011,396429,1111.57,REVENUE,The Synergy Group
Peterborough City Council,"Cultural, Environmental and Planning Services",Economic Development,Third Party Payments,12/09/2011,396543,2212.5,REVENUE,Victim Support Cambridgeshire
Peterborough City Council,Children's & Education Services - Children's Social Care,Other Children's & Families Services,Transport,12/09/2011,396594,2437.2,REVENUE,R S P LTD
Peterborough City Council,Housing Services,Housing Benefits,Employees,12/09/2011,396899,1024.96,REVENUE,The Synergy Group
Peterborough City Council,"Cultural, Environmental and Planning Services",Economic Development,Employees,12/09/2011,399441,1093,REVENUE,Redacted Personal Data
Peterborough City Council,Children's & Education Services - Children's Social Care,Other Children's & Families Services,Employees,12/09/2011,399473,1308.96,REVENUE,Frontline Staffing Ltd
Peterborough City Council,Deficit/(Surplus) on Trading Undertakings,Trading Account Surpluses & Deficits,Transport,12/09/2011,400052,23623.2,REVENUE,Specialist Fleet Services
Peterborough City Council,Deficit/(Surplus) on Trading Undertakings,Trading Account Surpluses & Deficits,Transport,12/09/2011,400061,23623.2,REVENUE,Specialist Fleet Services
Peterborough City Council,Deficit/(Surplus) on Trading Undertakings,Trading Account Surpluses & Deficits,Transport,12/09/2011,400063,23623.2,REVENUE,Specialist Fleet Services
Peterborough City Council,Children's & Education Services - Children's Social Care,Other Children's & Families Services,Supplies and Services,12/09/2011,400068,720,REVENUE,Tri-x-Childcare Ltd
Peterborough City Council,Children's & Education Services - Children's Social Care,Children Looked After,Supplies and Services - Transfer Payments,12/09/2011,400077,2813.7,REVENUE,Foster Care Associates Ltd FCA
Peterborough City Council,Children's & Education Services - Education,Secondary,Employees,12/09/2011,400082,4725.6,REVENUE,Top Class Tutors
Peterborough City Council,Children's & Education Services - Children's Social Care,Children Looked After,Supplies and Services - Transfer Payments,12/09/2011,400097,2813.7,REVENUE,Foster Care Associates Ltd FCA
Peterborough City Council,Capital,Capital,Capital Pending Update to BS,12/09/2011,400256,636.53,CAPITAL,Atkins Limited
Peterborough City Council,Capital,Capital,Capital Pending Update to BS,12/09/2011,400260,723.56,CAPITAL,Atkins Limited
Peterborough City Council,Capital,Capital,Capital Pending Update to BS,12/09/2011,400269,16079.24,CAPITAL,Atkins Limited
Peterborough City Council,"Highways, Roads & Transport Services","Environmental, Safety & Routine Maintenance",Transport,12/09/2011,400271,9464.18,REVENUE,Atkins Limited
Peterborough City Council,Capital,Capital,Capital Pending Update to BS,12/09/2011,400273,5411.09,CAPITAL,Atkins Limited
Peterborough City Council,Capital,Capital,Capital Pending Update to BS,12/09/2011,400274,2176.44,CAPITAL,Atkins Limited
Peterborough City Council,Capital,Capital,Capital Pending Update to BS,12/09/2011,400275,5176.26,CAPITAL,Atkins Limited
Peterborough City Council,More than one Service Area Category,More than one Service Division,Supplies and Services,12/09/2011,400286,999.6,REVENUE,TNT Post Midlands Ltd
Peterborough City Council,Capital,Capital,Capital Pending Update to BS,12/09/2011,400294,1876.61,CAPITAL,Atkins Limited
Peterborough City Council,Capital,Capital,Capital Pending Update to BS,12/09/2011,400295,25074.37,CAPITAL,Atkins Limited
Peterborough City Council,"Highways, Roads & Transport Services","Transport planning, policy and strategy",Transport,12/09/2011,400296,3679.22,REVENUE,Atkins Limited
Peterborough City Council,"Highways, Roads & Transport Services","Transport planning, policy and strategy",Transport,12/09/2011,400312,3260.14,REVENUE,Atkins Limited
Peterborough City Council,Housing Services,Homelessness,Employees,12/09/2011,400549,593.1,REVENUE,Anne Corder Recruitment
Peterborough City Council,Housing Services,Homelessness,Employees,12/09/2011,400551,636.6,REVENUE,Anne Corder Recruitment
Peterborough City Council,Housing Services,Homelessness,Employees,12/09/2011,400554,616.83,REVENUE,Anne Corder Recruitment
Peterborough City Council,Children's & Education Services - Children's Social Care,Other Children's & Families Services,Supplies and Services,12/09/2011,400563,510.5,REVENUE,DA Rosalia Hotel
Peterborough City Council,Deficit/(Surplus) on Trading Undertakings,Trading Account Surpluses & Deficits,Supplies and Services,12/09/2011,400568,4622.4,REVENUE,Brammer
Peterborough City Council,Children's & Education Services - Children's Social Care,Other Children's & Families Services,Employees,12/09/2011,400687,1658.78,REVENUE,Blue Group International Ltd
Peterborough City Council,"Cultural, Environmental and Planning Services",Culture & Heritage,Supplies and Services,12/09/2011,400711,750,REVENUE,Caxton Swing
Peterborough City Council,Capital,Capital,Capital Pending Update to BS,12/09/2011,401211,16569.85,CAPITAL,Quadrant Security Group Ltd
Peterborough City Council,Capital,Capital,Capital Pending Update to BS,12/09/2011,401214,638.2,CAPITAL,Cambridgeshire County Council
Peterborough City Council,Children's & Education Services - Education,Primary,Supplies and Services,12/09/2011,401227,1921.95,REVENUE,Redacted Personal Data
Peterborough City Council,Capital,Capital,Capital Pending Update to BS,12/09/2011,401230,589.2,CAPITAL,UK Power Networks (operations) Ltd
Peterborough City Council,Deficit/(Surplus) on Trading Undertakings,Trading Account Surpluses & Deficits,Supplies and Services,12/09/2011,401263,630,REVENUE,Barron Clark Castings Ltd
Peterborough City Council,Children's & Education Services - Children's Social Care,Children Looked After,Supplies and Services - Transfer Payments,12/09/2011,401278,11571.3,REVENUE,Continuum Care & Educ. Group.
Peterborough City Council,Children's & Education Services - Children's Social Care,Children Looked After,Supplies and Services - Transfer Payments,12/09/2011,401279,14142.9,REVENUE,Continuum Care & Educ. Group.
Peterborough City Council,"Highways, Roads & Transport Services",Parking Services,Employees,12/09/2011,401347,638.4,REVENUE,Unity Recruitment Ltd
Peterborough City Council,Capital,Capital,Capital Pending Update to BS,12/09/2011,401349,1095.67,CAPITAL,Cambridgeshire County Council
Peterborough City Council,Capital,Capital,Capital Pending Update to BS,12/09/2011,401350,638.2,CAPITAL,Cambridgeshire County Council
Peterborough City Council,Children's & Education Services - Children's Social Care,Other Children's & Families Services,Third Party Payments,12/09/2011,401351,6250,REVENUE,Peterborough Provider Services
Peterborough City Council,Children's & Education Services - Children's Social Care,Family Support Services,Employees,12/09/2011,401352,690,REVENUE,Movement 2
Peterborough City Council,Deficit/(Surplus) on Trading Undertakings,Trading Account Surpluses & Deficits,Supplies and Services,12/09/2011,401405,2321.59,REVENUE,Brammer
Peterborough City Council,Deficit/(Surplus) on Trading Undertakings,Trading Account Surpluses & Deficits,Supplies and Services,12/09/2011,401406,3962.88,REVENUE,Brammer
Peterborough City Council,Children's & Education Services - Children's Social Care,Children Looked After,Supplies and Services - Transfer Payments,12/09/2011,401600,3556.01,REVENUE,Foster Care Associates Ltd FCA
Peterborough City Council,Children's & Education Services - Children's Social Care,Children Looked After,Supplies and Services - Transfer Payments,12/09/2011,401631,2907.49,REVENUE,Foster Care Associates Ltd FCA
Peterborough City Council,Children's & Education Services - Children's Social Care,Children Looked After,Supplies and Services - Transfer Payments,12/09/2011,401640,2907.49,REVENUE,Foster Care Associates Ltd FCA
Peterborough City Council,Children's & Education Services - Children's Social Care,Support Services & Management Costs,Supplies and Services,12/09/2011,401690,1732.2,REVENUE,Psychology4Law Ltd
Peterborough City Council,"Cultural, Environmental and Planning Services",Support Services & Management Costs,Third Party Payments,12/09/2011,401832,51307.67,REVENUE,Vivacity Culture and Leisure
Peterborough City Council,Children's & Education Services - Children's Social Care,Children Looked After,Supplies and Services - Transfer Payments,12/09/2011,402038,3556.01,REVENUE,Foster Care Associates Ltd FCA
Peterborough City Council,More than one Service Area Category,More than one Service Division,More than one Expenses Type,12/09/2011,402111,1245.1,REVENUE,Peterborough City Council
Peterborough City Council,Children's & Education Services - Children's Social Care,Children Looked After,Supplies and Services - Transfer Payments,12/09/2011,402677,3556.01,REVENUE,Foster Care Associates Ltd FCA
Peterborough City Council,Children's & Education Services - Children's Social Care,Children Looked After,Supplies and Services - Transfer Payments,12/09/2011,402680,3556.01,REVENUE,Foster Care Associates Ltd FCA
Peterborough City Council,Children's & Education Services - Children's Social Care,Children Looked After,Supplies and Services - Transfer Payments,12/09/2011,402682,3556.01,REVENUE,Foster Care Associates Ltd FCA
Peterborough City Council,Children's & Education Services - Children's Social Care,Children Looked After,Supplies and Services - Transfer Payments,12/09/2011,402683,4380.3,REVENUE,Foster Care Associates Ltd FCA
Peterborough City Council,Children's & Education Services - Children's Social Care,Children Looked After,Supplies and Services - Transfer Payments,12/09/2011,402684,3556.01,REVENUE,Foster Care Associates Ltd FCA
Peterborough City Council,Children's & Education Services - Children's Social Care,Children Looked After,Supplies and Services - Transfer Payments,12/09/2011,402686,2907.49,REVENUE,Foster Care Associates Ltd FCA
Peterborough City Council,Children's & Education Services - Children's Social Care,Children Looked After,Supplies and Services - Transfer Payments,12/09/2011,402687,3556.01,REVENUE,Foster Care Associates Ltd FCA
Peterborough City Council,Children's & Education Services - Children's Social Care,Children Looked After,Supplies and Services - Transfer Payments,12/09/2011,402690,2907.49,REVENUE,Foster Care Associates Ltd FCA
Peterborough City Council,Children's & Education Services - Children's Social Care,Children Looked After,Supplies and Services - Transfer Payments,12/09/2011,402691,2907.49,REVENUE,Foster Care Associates Ltd FCA
Peterborough City Council,Children's & Education Services - Education,Non-School Funding,Supplies and Services,12/09/2011,402702,8602,REVENUE,PSLA
Peterborough City Council,Children's & Education Services - Children's Social Care,Children Looked After,Supplies and Services - Transfer Payments,12/09/2011,402703,5240.55,REVENUE,Foster Care Associates Ltd FCA
Peterborough City Council,Children's & Education Services - Education,Secondary,Premises,12/09/2011,402782,1665.41,REVENUE,Eastern Shires Purchasing Organisation
Peterborough City Council,Children's & Education Services - Education,Secondary,Premises,12/09/2011,402800,671.32,REVENUE,Eastern Shires Purchasing Organisation
Peterborough City Council,Children's & Education Services - Education,Secondary,Premises,12/09/2011,402801,691.31,REVENUE,Anglian Water
Peterborough City Council,Support Services,Support Services,Premises,12/09/2011,402849,3872.58,REVENUE,Anglian Water
Peterborough City Council,Children's & Education Services - Education,Secondary,Premises,12/09/2011,402879,631.25,REVENUE,Anglian Water
Peterborough City Council,More than one Service Area Category,More than one Service Division,Supplies and Services,12/09/2011,402881,23765.96,REVENUE,Birketts LLP
Peterborough City Council,Housing Services,Private Sector Housing Renewal,Supplies and Services,12/09/2011,402882,900,REVENUE,Freeth Cartwright LLP
Peterborough City Council,Support Services,Support Services,Premises,12/09/2011,402883,651.84,REVENUE,Princebuild Limited
Peterborough City Council,Deficit/(Surplus) on Trading Undertakings,Trading Account Surpluses & Deficits,Premises,12/09/2011,402887,573.98,REVENUE,T Clarke East Limited
Peterborough City Council,Deficit/(Surplus) on Trading Undertakings,Trading Account Surpluses & Deficits,Premises,12/09/2011,402891,2595.6,REVENUE,Princebuild Limited
Peterborough City Council,Deficit/(Surplus) on Trading Undertakings,Trading Account Surpluses & Deficits,Supplies and Services,12/09/2011,402894,637.11,REVENUE,Princebuild Limited
Peterborough City Council,Support Services,Support Services,Premises,12/09/2011,402896,650.75,REVENUE,NB Real Estate
Peterborough City Council,Support Services,Support Services,Premises,12/09/2011,402905,587.02,REVENUE,Princebuild Limited
Peterborough City Council,Housing Services,Housing Benefits,Employees,12/09/2011,402940,9136.01,REVENUE,The Synergy Group
Peterborough City Council,Children's & Education Services - Education,Non-School Funding,Transport,12/09/2011,402959,1324.8,REVENUE,R T Enterprises Ltd T/A Royal Taxis
Peterborough City Council,Children's & Education Services - Education,Non-School Funding,Transport,12/09/2011,402960,684,REVENUE,R T Enterprises Ltd T/A Royal Taxis
Peterborough City Council,Children's & Education Services - Education,Non-School Funding,Transport,12/09/2011,402961,864.6,REVENUE,Goldstar Cabs Ltd
Peterborough City Council,Capital,Capital,Capital Pending Update to BS,12/09/2011,402965,3710.36,CAPITAL,Tensor Plc
Peterborough City Council,Capital,Capital,Capital Pending Update to BS,12/09/2011,402987,344354.02,CAPITAL,Geoffrey Osborne Ltd
Peterborough City Council,Children's & Education Services - Education,Non-School Funding,Supplies and Services,12/09/2011,403005,3441.3,REVENUE,Fulbridge Nursery LIttle Gems
Peterborough City Council,Children's & Education Services - Education,Non-School Funding,Supplies and Services,12/09/2011,403007,14076,REVENUE,Family Action
Peterborough City Council,Children's & Education Services - Education,Non-School Funding,Supplies and Services,12/09/2011,403011,9396.5,REVENUE,St Michaels Playgroup
Peterborough City Council,Children's & Education Services - Children's Social Care,Children Looked After,Supplies and Services - Transfer Payments,12/09/2011,403075,4089.24,REVENUE,Tree House Care Fostering Solutions Ltd
Peterborough City Council,Children's & Education Services - Children's Social Care,Children Looked After,Supplies and Services - Transfer Payments,14/09/2011,389345,13263.66,REVENUE,Direct Care Limited
Peterborough City Council,Children's & Education Services - Children's Social Care,Children Looked After,Supplies and Services - Transfer Payments,14/09/2011,393270,13263.66,REVENUE,Direct Care Limited
Peterborough City Council,Support Services,Support Services,Employees,14/09/2011,394824,926.34,REVENUE,Sacco Mann Ltd
Peterborough City Council,Deficit/(Surplus) on Trading Undertakings,Trading Account Surpluses & Deficits,Transport,14/09/2011,394877,985,REVENUE,Apex Training Services
Peterborough City Council,Children's & Education Services - Children's Social Care,Other Children's & Families Services,More than one Expenses Type,14/09/2011,397127,836.5,REVENUE,Peterborough Diocesan Family Care
Peterborough City Council,Housing Services,Private Sector Housing Renewal,Supplies and Services,14/09/2011,397983,1117.75,REVENUE,Nightingale Services
Peterborough City Council,Children's & Education Services - Children's Social Care,Family Support Services,More than one Expenses Type,14/09/2011,398288,723.6,REVENUE,PAM Recruitment Ltd
Peterborough City Council,Children's & Education Services - Education,Secondary,Transport,14/09/2011,398590,1053.6,REVENUE,A2B Euro Cars
Peterborough City Council,Children's & Education Services - Children's Social Care,Family Support Services,More than one Expenses Type,14/09/2011,399620,1833.84,REVENUE,PAM Recruitment Ltd
Peterborough City Council,Deficit/(Surplus) on Trading Undertakings,Trading Account Surpluses & Deficits,Supplies and Services,14/09/2011,399765,1094.4,REVENUE,Elring Klinger (Great Britain)Ltd
Peterborough City Council,Children's & Education Services - Children's Social Care,Children Looked After,Supplies and Services - Transfer Payments,14/09/2011,399804,45063.57,REVENUE,The Regard Partnership Limited
Peterborough City Council,Capital,Capital,Capital Pending Update to BS,14/09/2011,399971,2100,CAPITAL,Ratcliff Land & Engineering Surveys
Peterborough City Council,Children's & Education Services - Children's Social Care,Other Children's & Families Services,Employees,14/09/2011,399974,1609.5,REVENUE,Care Recruitment UK Ltd
Peterborough City Council,More than one Service Area Category,More than one Service Division,Supplies and Services,14/09/2011,400007,1352.42,REVENUE,Loomis UK Ltd
Peterborough City Council,Capital,Capital,Capital Pending Update to BS,14/09/2011,400242,16800,CAPITAL,Atkins Limited
Peterborough City Council,Capital,Capital,Capital Pending Update to BS,14/09/2011,400244,2760,CAPITAL,Atkins Limited
Peterborough City Council,"Highways, Roads & Transport Services","Transport planning, policy and strategy",Transport,14/09/2011,400246,2455.58,REVENUE,Atkins Limited
Peterborough City Council,"Highways, Roads & Transport Services",Winter Service,Transport,14/09/2011,400249,4184.87,REVENUE,Atkins Limited
Peterborough City Council,Capital,Capital,Capital Pending Update to BS,14/09/2011,400251,7448.34,CAPITAL,Atkins Limited
Peterborough City Council,"Highways, Roads & Transport Services",Highways/road (structural),Transport,14/09/2011,400255,2733.62,REVENUE,Atkins Limited
Peterborough City Council,Capital,Capital,Capital Pending Update to BS,14/09/2011,400265,3279.06,CAPITAL,Atkins Limited
Peterborough City Council,Children's & Education Services - Children's Social Care,More than one Service Division,Supplies and Services,14/09/2011,400290,2838.85,REVENUE,R S P LTD
Peterborough City Council,"Highways, Roads & Transport Services",Public Transport,Premises,14/09/2011,400432,5201.87,REVENUE,Jones Lang LaSalle
Peterborough City Council,Central Services to the Public,Local Tax,Supplies and Services,14/09/2011,400433,561.02,REVENUE,Financial Data Management
Peterborough City Council,Deficit/(Surplus) on Trading Undertakings,Trading Account Surpluses & Deficits,Supplies and Services,14/09/2011,400439,1175.59,REVENUE,Barron Clark Castings Ltd
Peterborough City Council,Deficit/(Surplus) on Trading Undertakings,Trading Account Surpluses & Deficits,Supplies and Services,14/09/2011,400442,2603.52,REVENUE,Barron Clark Castings Ltd
Peterborough City Council,Children's & Education Services - Children's Social Care,Support Services & Management Costs,Employees,14/09/2011,400463,948,REVENUE,Fostering Network
Peterborough City Council,Deficit/(Surplus) on Trading Undertakings,Trading Account Surpluses & Deficits,Supplies and Services,14/09/2011,400475,966.24,REVENUE,Barron Clark Castings Ltd
Peterborough City Council,Deficit/(Surplus) on Trading Undertakings,Trading Account Surpluses & Deficits,Supplies and Services,14/09/2011,400480,986.4,REVENUE,Barron Clark Castings Ltd
Peterborough City Council,Deficit/(Surplus) on Trading Undertakings,Trading Account Surpluses & Deficits,Supplies and Services,14/09/2011,400481,611.95,REVENUE,Barron Clark Castings Ltd
Peterborough City Council,Deficit/(Surplus) on Trading Undertakings,Trading Account Surpluses & Deficits,Supplies and Services,14/09/2011,400484,1748.7,REVENUE,Barron Clark Castings Ltd
Peterborough City Council,Children's & Education Services - Children's Social Care,Family Support Services,Supplies and Services,14/09/2011,400514,549.6,REVENUE,Community Playthings
Peterborough City Council,Capital,Capital,Capital Pending Update to BS,14/09/2011,400527,4773.34,CAPITAL,Rider Levett Bucknall UK Ltd
Peterborough City Council,Children's & Education Services - Children's Social Care,Other Children's & Families Services,Employees,14/09/2011,400538,1554,REVENUE,Blue Group International Ltd
Peterborough City Council,Children's & Education Services - Children's Social Care,Family Support Services,Supplies and Services,14/09/2011,400546,511.78,REVENUE,Konica Minolta Bus.Sol. East Ltd
Peterborough City Council,Support Services,Support Services & Management Costs,Employees,14/09/2011,400559,1500,REVENUE,Town & Country Planning Association
Peterborough City Council,More than one Service Area Category,More than one Service Division,Supplies and Services,14/09/2011,400616,1435.18,REVENUE,TNT Post Midlands Ltd
Peterborough City Council,More than one Service Area Category,More than one Service Division,Balance Sheet,14/09/2011,400654,512.55,Balance Sheet,Rossendales C B Ltd
Peterborough City Council,Central Services to the Public,Local Tax,Employees,14/09/2011,401194,1766.4,REVENUE,The Synergy Group
Peterborough City Council,Housing Services,Housing Benefits,Employees,14/09/2011,401197,1065.6,REVENUE,The Synergy Group
Peterborough City Council,Housing Services,Housing Benefits,Employees,14/09/2011,401198,1183.75,REVENUE,The Synergy Group
Peterborough City Council,Capital,Capital,Capital Pending Update to BS,14/09/2011,401206,3326.4,CAPITAL,British Telecom PLC
Peterborough City Council,Children's & Education Services - Education,Non-School Funding,Supplies and Services,14/09/2011,401215,37953.84,REVENUE,Bull & Co Ltd
Peterborough City Council,Children's & Education Services - Education,Non-School Funding,Premises,14/09/2011,401216,9152.4,REVENUE,Bull & Co Ltd
Peterborough City Council,Children's & Education Services - Education,Non-School Funding,Supplies and Services,14/09/2011,401217,32043.6,REVENUE,Bull & Co Ltd
Peterborough City Council,Support Services,Support Services,Employees,14/09/2011,401225,1764,REVENUE,Sellick Partnership Group Limited
Peterborough City Council,Support Services,Support Services,Employees,14/09/2011,401226,1764,REVENUE,Sellick Partnership Group Limited
Peterborough City Council,Housing Services,Private Sector Housing Renewal,Supplies and Services,14/09/2011,401238,1411,REVENUE,Nightingale Services
Peterborough City Council,Deficit/(Surplus) on Trading Undertakings,Trading Account Surpluses & Deficits,Supplies and Services,14/09/2011,401266,2752.6,REVENUE,Barron Clark Castings Ltd
Peterborough City Council,Deficit/(Surplus) on Trading Undertakings,Trading Account Surpluses & Deficits,Supplies and Services,14/09/2011,401267,521.14,REVENUE,Barron Clark Castings Ltd
Peterborough City Council,Deficit/(Surplus) on Trading Undertakings,Trading Account Surpluses & Deficits,Supplies and Services,14/09/2011,401275,4218.48,REVENUE,Perkins Engines Co Ltd
Peterborough City Council,Children's & Education Services - Education,Non-School Funding,Employees,14/09/2011,401283,7280,REVENUE,Cambridgeshire County Council
Peterborough City Council,Support Services,Support Services,Employees,14/09/2011,401338,1287.72,REVENUE,Law Absolute (PS2) Ltd
Peterborough City Council,Children's & Education Services - Children's Social Care,Family Support Services,Employees,14/09/2011,401339,2832,REVENUE,Jenx Ltd
Peterborough City Council,Children's & Education Services - Children's Social Care,Support Services & Management Costs,Employees,14/09/2011,401370,1095.19,REVENUE,Randstad Care Ltd
Peterborough City Council,Children's & Education Services - Children's Social Care,Other Children's & Families Services,Employees,14/09/2011,401378,1821.73,REVENUE,Randstad Care Ltd
Peterborough City Council,Children's & Education Services - Children's Social Care,Other Children's & Families Services,Employees,14/09/2011,401380,1821.73,REVENUE,Randstad Care Ltd
Peterborough City Council,Capital,Capital,Capital Pending Update to BS,14/09/2011,401383,25038,CAPITAL,E N Suiter & Sons Ltd
Peterborough City Council,Support Services,Support Services,Supplies and Services,14/09/2011,401395,1963.2,REVENUE,Northgate Information Solutions
Peterborough City Council,Children's & Education Services - Children's Social Care,Family Support Services,Third Party Payments,14/09/2011,401397,64899.6,REVENUE,Pre-School Learning Alliance
Peterborough City Council,Children's & Education Services - Children's Social Care,Family Support Services,Third Party Payments,14/09/2011,401398,5482.8,REVENUE,Pre-School Learning Alliance
Peterborough City Council,Children's & Education Services - Children's Social Care,Family Support Services,Supplies and Services,14/09/2011,401401,3310,REVENUE,Anglia Support Partnership
Peterborough City Council,Children's & Education Services - Children's Social Care,Family Support Services,Employees,14/09/2011,401403,571.48,REVENUE,Advantage Healthcare Nursing & Care Ltd
Peterborough City Council,Support Services,Support Services,Employees,14/09/2011,401404,1310.86,REVENUE,Sacco Mann Ltd
Peterborough City Council,Children's & Education Services - Children's Social Care,Family Support Services,Employees,14/09/2011,401411,610.32,REVENUE,Advantage Healthcare Nursing & Care Ltd
Peterborough City Council,Children's & Education Services - Education,Non-School Funding,Third Party Payments,14/09/2011,401420,10166.7,REVENUE,Pre-School Learning Alliance
Peterborough City Council,Children's & Education Services - Education,Non-School Funding,Supplies and Services,14/09/2011,401434,35200,REVENUE,Cambridgeshire County Council
Peterborough City Council,Housing Services,Housing Benefits,Employees,14/09/2011,401437,1883.89,REVENUE,The Synergy Group
Peterborough City Council,Housing Services,Housing Benefits,Employees,14/09/2011,401439,945.56,REVENUE,The Synergy Group
Peterborough City Council,Children's & Education Services - Children's Social Care,Family Support Services,Employees,14/09/2011,401463,1443.78,REVENUE,Swim
Peterborough City Council,Children's & Education Services - Children's Social Care,Other Children's & Families Services,Supplies and Services,14/09/2011,401469,1200,REVENUE,Stagecoach in Peterborough
Peterborough City Council,Children's & Education Services - Education,Non-School Funding,Transport,14/09/2011,401483,1605,REVENUE,Statutory Payment of Concessionary Fares to Bus Provider
Peterborough City Council,Children's & Education Services - Children's Social Care,Children Looked After,Employees,14/09/2011,401484,616.01,REVENUE,Randstad Care Ltd
Peterborough City Council,Children's & Education Services - Children's Social Care,Other Children's & Families Services,Employees,14/09/2011,401489,1687.2,REVENUE,Medicare First
Peterborough City Council,"Highways, Roads & Transport Services","Transport planning, policy and strategy",Supplies and Services,14/09/2011,401497,646.8,REVENUE,Johnston Press Midlands Division
Peterborough City Council,Support Services,Support Services,Supplies and Services,14/09/2011,401514,1122.83,REVENUE,Pitney Bowes Ltd
Peterborough City Council,Children's & Education Services - Children's Social Care,Other Children's & Families Services,Supplies and Services,14/09/2011,401578,1200,REVENUE,Stagecoach in Peterborough
Peterborough City Council,"Cultural, Environmental and Planning Services",Economic Development,Employees,14/09/2011,401591,2158.92,REVENUE,Hays Specialist Recruitment Ltd
Peterborough City Council,Support Services,Support Services,Supplies and Services,14/09/2011,401694,17457.34,REVENUE,Edenred
Peterborough City Council,Deficit/(Surplus) on Trading Undertakings,Trading Account Surpluses & Deficits,Supplies and Services,14/09/2011,401782,1739.09,REVENUE,Barron Clark Castings Ltd
Peterborough City Council,Deficit/(Surplus) on Trading Undertakings,Trading Account Surpluses & Deficits,Supplies and Services,14/09/2011,401787,1053.5,REVENUE,Barron Clark Castings Ltd
Peterborough City Council,Deficit/(Surplus) on Trading Undertakings,Trading Account Surpluses & Deficits,Supplies and Services,14/09/2011,401789,927.96,REVENUE,Barron Clark Castings Ltd
Peterborough City Council,Children's & Education Services - Children's Social Care,Children Looked After,Supplies and Services - Transfer Payments,14/09/2011,401799,4278.6,REVENUE,Direct Care Limited
Peterborough City Council,Children's & Education Services - Children's Social Care,Children Looked After,Supplies and Services - Transfer Payments,14/09/2011,401803,13263.66,REVENUE,Direct Care Limited
Peterborough City Council,Children's & Education Services - Children's Social Care,Support Services & Management Costs,Supplies and Services,14/09/2011,401816,1900,REVENUE,HM Courts and Tribunals Service (HMCTS)
Peterborough City Council,Capital,Capital,Capital Pending Update to BS,14/09/2011,401857,624780.49,CAPITAL,Kier Eastern
Peterborough City Council,"Highways, Roads & Transport Services","Environmental, Safety & Routine Maintenance",Supplies and Services,14/09/2011,401951,1760.69,REVENUE,Telent Technology Services Ltd
Peterborough City Council,Children's & Education Services - Children's Social Care,Other Children's & Families Services,Employees,14/09/2011,401955,886.94,REVENUE,Sanctuary Personnel Ltd
Peterborough City Council,Capital,Capital,Capital Pending Update to BS,14/09/2011,401968,44678,CAPITAL,Frederick F Smith (Builders) Ltd
Peterborough City Council,Capital,Capital,Capital Pending Update to BS,14/09/2011,401969,2196.6,CAPITAL,Frederick F Smith (Builders) Ltd
Peterborough City Council,More than one Service Area Category,More than one Service Division,Balance Sheet,14/09/2011,402003,750,Balance Sheet,Quality Solicitors Carters
Peterborough City Council,Children's & Education Services - Children's Social Care,Other Children's & Families Services,Employees,14/09/2011,402034,1595.76,REVENUE,Sanctuary Personnel Ltd
Peterborough City Council,"Cultural, Environmental and Planning Services",Economic Development,Employees,14/09/2011,402047,1879.2,REVENUE,Hays Specialist Recruitment Ltd
Peterborough City Council,"Cultural, Environmental and Planning Services",Economic Development,Employees,14/09/2011,402049,1386,REVENUE,Hays Specialist Recruitment Ltd
Peterborough City Council,Children's & Education Services - Education,Non-School Funding,Employees,14/09/2011,402050,7000,REVENUE,Redacted Personal Data
Peterborough City Council,Children's & Education Services - Children's Social Care,Support Services & Management Costs,Supplies and Services,14/09/2011,402072,1900,REVENUE,HM Courts and Tribunals Service (HMCTS)
Peterborough City Council,More than one Service Area Category,More than one Service Division,More than one Expenses Type,14/09/2011,402098,46800,REVENUE,Stagecoach in Peterborough
Peterborough City Council,Capital,Capital,Capital Pending Update to BS,14/09/2011,402434,25951.01,CAPITAL,British Telecom PLC
Peterborough City Council,"Cultural, Environmental and Planning Services",Economic Development,Premises,14/09/2011,402610,770.64,REVENUE,Equinox (Peterborough) Ltd
Peterborough City Council,Support Services,Support Services,Employees,14/09/2011,402672,1701,REVENUE,Sellick Partnership Group Limited
Peterborough City Council,More than one Service Area Category,More than one Service Division,Balance Sheet,14/09/2011,402679,2100,Balance Sheet,Redacted Personal Data
Peterborough City Council,Children's & Education Services - Children's Social Care,Children Looked After,Supplies and Services - Transfer Payments,14/09/2011,402689,2907.49,REVENUE,Foster Care Associates Ltd FCA
Peterborough City Council,Support Services,Support Services,Premises,14/09/2011,402692,6000,REVENUE,Graysons with Waton Elam Solicitors
Peterborough City Council,Housing Services,Private Sector Housing Renewal,Supplies and Services,14/09/2011,402694,1320,REVENUE,Cuthbert & Co
Peterborough City Council,Children's & Education Services - Children's Social Care,Support Services & Management Costs,Supplies and Services,14/09/2011,402695,1918.02,REVENUE,HC Solicitors LLP
Peterborough City Council,More than one Service Area Category,More than one Service Division,Balance Sheet,14/09/2011,402696,609.6,Balance Sheet,Dept for Work & Pensions
Peterborough City Council,More than one Service Area Category,More than one Service Division,Balance Sheet,14/09/2011,402698,4500,Balance Sheet,Redacted Personal Data
Peterborough City Council,Children's & Education Services - Children's Social Care,Other Children's & Families Services,Employees,14/09/2011,402754,1576.61,REVENUE,Sanctuary Personnel Ltd
Peterborough City Council,Children's & Education Services - Children's Social Care,Other Children's & Families Services,Employees,14/09/2011,402757,1575,REVENUE,Sanctuary Personnel Ltd
Peterborough City Council,Children's & Education Services - Children's Social Care,Children Looked After,Supplies and Services,14/09/2011,402772,2995,REVENUE,Catch 22
Peterborough City Council,Deficit/(Surplus) on Trading Undertakings,Trading Account Surpluses & Deficits,Premises,14/09/2011,402900,39000,REVENUE,Nuffield College Rents A/C
Peterborough City Council,"Highways, Roads & Transport Services",Public Transport,Supplies and Services,14/09/2011,402904,34588.81,REVENUE,Stagecoach in Peterborough
Peterborough City Council,Court Services,Coroner's Court Service,Supplies and Services,14/09/2011,402912,7805.16,REVENUE,P'Boro & Stamford Hosp NHS F/dation Trust
Peterborough City Council,Court Services,Coroner's Court Service,Supplies and Services,14/09/2011,402958,10629.9,REVENUE,P'Boro & Stamford Hosp NHS F/dation Trust
Peterborough City Council,Capital,Capital,Capital Pending Update to BS,14/09/2011,402985,13509.04,CAPITAL,The K A Wing Group Ltd
Peterborough City Council,Deficit/(Surplus) on Trading Undertakings,Trading Account Surpluses & Deficits,Premises,14/09/2011,402989,39283.16,REVENUE,DVS Property Ltd
Peterborough City Council,More than one Service Area Category,More than one Service Division,Balance Sheet,14/09/2011,403022,5000,Balance Sheet,Browne Jacobson
Peterborough City Council,Support Services,Support Services,Premises,14/09/2011,403028,30000,REVENUE,Savills L&P Ltd
Peterborough City Council,Deficit/(Surplus) on Trading Undertakings,Trading Account Surpluses & Deficits,Supplies and Services,14/09/2011,403119,727.32,REVENUE,Barron Clark Castings Ltd
Peterborough City Council,Deficit/(Surplus) on Trading Undertakings,Trading Account Surpluses & Deficits,Supplies and Services,14/09/2011,403120,860.64,REVENUE,Barron Clark Castings Ltd
Peterborough City Council,Deficit/(Surplus) on Trading Undertakings,Trading Account Surpluses & Deficits,Supplies and Services,14/09/2011,403121,1019.52,REVENUE,Barron Clark Castings Ltd
Peterborough City Council,Deficit/(Surplus) on Trading Undertakings,Trading Account Surpluses & Deficits,Supplies and Services,14/09/2011,403123,902.88,REVENUE,Barron Clark Castings Ltd
Peterborough City Council,Deficit/(Surplus) on Trading Undertakings,Trading Account Surpluses & Deficits,Supplies and Services,14/09/2011,403126,1690.7,REVENUE,Barron Clark Castings Ltd
Peterborough City Council,Support Services,Support Services,Premises,14/09/2011,403135,515.98,REVENUE,Eastern Shires Purchasing Organisation
Peterborough City Council,Support Services,Support Services,Premises,14/09/2011,403136,46132.83,REVENUE,Southern Electric
Peterborough City Council,Capital,Capital,Capital Pending Update to BS,14/09/2011,403158,540,CAPITAL,Survey Solutions
Peterborough City Council,Deficit/(Surplus) on Trading Undertakings,Trading Account Surpluses & Deficits,Supplies and Services,14/09/2011,403165,53480.67,REVENUE,Cognito Ltd
Peterborough City Council,Deficit/(Surplus) on Trading Undertakings,Trading Account Surpluses & Deficits,Supplies and Services,14/09/2011,403169,-9121.93,REVENUE,Cognito Ltd
Peterborough City Council,"Highways, Roads & Transport Services","Transport planning, policy and strategy",Employees,14/09/2011,403170,1251,REVENUE,Randstad CPE
Peterborough City Council,"Highways, Roads & Transport Services","Transport planning, policy and strategy",Employees,14/09/2011,403181,1575,REVENUE,Randstad CPE
Peterborough City Council,"Cultural, Environmental and Planning Services",Economic Development,Employees,14/09/2011,403182,1323.9,REVENUE,Randstad CPE
Peterborough City Council,Parish Council Precepts,Precepts & Levies,More than one Expenses Type,14/09/2011,403183,5590.5,REVENUE,Ailsworth Parish Council
Peterborough City Council,Parish Council Precepts,Precepts & Levies,More than one Expenses Type,14/09/2011,403184,2875,REVENUE,Bainton Parish Council
Peterborough City Council,Parish Council Precepts,Precepts & Levies,More than one Expenses Type,14/09/2011,403185,7653.5,REVENUE,Barnack Parish Council
Peterborough City Council,"Highways, Roads & Transport Services","Transport planning, policy and strategy",Employees,14/09/2011,403188,1881,REVENUE,Randstad CPE
Peterborough City Council,Parish Council Precepts,Precepts & Levies,More than one Expenses Type,14/09/2011,403189,50000,REVENUE,Bretton Parish Council
Peterborough City Council,Parish Council Precepts,Precepts & Levies,More than one Expenses Type,14/09/2011,403194,32570,REVENUE,Eye Parish Council
Peterborough City Council,Parish Council Precepts,Precepts & Levies,More than one Expenses Type,14/09/2011,403195,10243.5,REVENUE,Glinton Parish Council
Peterborough City Council,Parish Council Precepts,Precepts & Levies,More than one Expenses Type,14/09/2011,403197,27947.5,REVENUE,Hampton Parish Council
Peterborough City Council,Parish Council Precepts,Precepts & Levies,More than one Expenses Type,14/09/2011,403200,7785.5,REVENUE,Helpston Parish Council
Peterborough City Council,Support Services,Support Services,Supplies and Services,14/09/2011,403204,1680,REVENUE,Weightmans LLP
Peterborough City Council,Children's & Education Services - Education,Non-School Funding,Supplies and Services,14/09/2011,403214,1170,REVENUE,Anna Jacobs MTB
Peterborough City Council,Parish Council Precepts,Precepts & Levies,More than one Expenses Type,14/09/2011,403221,11500,REVENUE,Northborough Parish Council
Peterborough City Council,Parish Council Precepts,Precepts & Levies,More than one Expenses Type,14/09/2011,403223,17975,REVENUE,Orton Longueville Parish Council
Peterborough City Council,Parish Council Precepts,Precepts & Levies,More than one Expenses Type,14/09/2011,403225,29503,REVENUE,Orton Waterville Parish Council
Peterborough City Council,Parish Council Precepts,Precepts & Levies,More than one Expenses Type,14/09/2011,403227,4750,REVENUE,Peakirk Parish Council
Peterborough City Council,Parish Council Precepts,Precepts & Levies,More than one Expenses Type,14/09/2011,403228,32633.5,REVENUE,Thorney Parish Council
Peterborough City Council,Parish Council Precepts,Precepts & Levies,More than one Expenses Type,14/09/2011,403231,3275,REVENUE,Thornhaugh Parish Council
Peterborough City Council,Parish Council Precepts,Precepts & Levies,More than one Expenses Type,14/09/2011,403232,6063,REVENUE,Wansford Parish Council
Peterborough City Council,Children's & Education Services - Education,Non-School Funding,Supplies and Services,14/09/2011,403237,638.57,REVENUE,Bright Kids Nursery Ltd (Lynchwood)
Peterborough City Council,Children's & Education Services - Education,Non-School Funding,Supplies and Services,14/09/2011,403238,11290.74,REVENUE,Bright Kids Nursery Ltd (Lynchwood)
Peterborough City Council,More than one Service Area Category,More than one Service Division,More than one Expenses Type,14/09/2011,403242,9057.03,"Mixture of Capital, Revenue and/or Balance Sheet",Bloom & Wake Ltd
Peterborough City Council,More than one Service Area Category,More than one Service Division,More than one Expenses Type,14/09/2011,403244,9640,"Mixture of Capital, Revenue and/or Balance Sheet",The Mobility Equipment Company
Peterborough City Council,More than one Service Area Category,More than one Service Division,More than one Expenses Type,14/09/2011,403246,2901,"Mixture of Capital, Revenue and/or Balance Sheet",S R K Engineering
Peterborough City Council,More than one Service Area Category,More than one Service Division,More than one Expenses Type,14/09/2011,403247,1680,"Mixture of Capital, Revenue and/or Balance Sheet",EMS Stairlifts
Peterborough City Council,More than one Service Area Category,More than one Service Division,More than one Expenses Type,14/09/2011,403248,2563.63,"Mixture of Capital, Revenue and/or Balance Sheet",S R K Engineering
Peterborough City Council,More than one Service Area Category,More than one Service Division,More than one Expenses Type,14/09/2011,403249,3873,"Mixture of Capital, Revenue and/or Balance Sheet",P F S Builders & Contractors
Peterborough City Council,More than one Service Area Category,More than one Service Division,More than one Expenses Type,14/09/2011,403250,1337.68,"Mixture of Capital, Revenue and/or Balance Sheet",Sustain Services
Peterborough City Council,Deficit/(Surplus) on Trading Undertakings,Trading Account Surpluses & Deficits,Supplies and Services,14/09/2011,403858,1351.18,REVENUE,Danwood Group Limited
Peterborough City Council,Children's & Education Services - Children's Social Care,Family Support Services,Employees,14/09/2011,404441,2400,REVENUE,Redacted Personal Data
Peterborough City Council,"Cultural, Environmental and Planning Services",Regulatory services,Supplies and Services,14/09/2011,404443,2337.42,REVENUE,Tejaycey Boarding Kennels and Cattery
Peterborough City Council,Children's & Education Services - Education,Non-School Funding,Supplies and Services,14/09/2011,404764,2287,REVENUE,Peterborough Racial Equality Council
Peterborough City Council,Children's & Education Services - Children's Social Care,Children Looked After,Supplies and Services,14/09/2011,405360,1795,REVENUE,IAS TACT
Peterborough City Council,Children's & Education Services - Children's Social Care,Other Children's & Families Services,Supplies and Services,14/09/2011,405655,3253.6,REVENUE,Positive Family Alliances
Peterborough City Council,Children's & Education Services - Children's Social Care,Other Children's & Families Services,Supplies and Services,14/09/2011,405656,2275.2,REVENUE,Positive Family Alliances
Peterborough City Council,Children's & Education Services - Children's Social Care,Children Looked After,Supplies and Services - Transfer Payments,14/09/2011,405665,3155.7,REVENUE,Alliance Foster Care
Peterborough City Council,More than one Service Area Category,More than one Service Division,Balance Sheet,14/09/2011,405668,237552.97,Balance Sheet,Cambridgeshire County Council
Peterborough City Council,More than one Service Area Category,More than one Service Division,Balance Sheet,14/09/2011,405961,633210.32,Balance Sheet,Cambridgeshire County Council
Peterborough City Council,Children's & Education Services - Children's Social Care,Children Looked After,Supplies and Services - Transfer Payments,14/09/2011,406037,616.18,REVENUE,Redacted Personal Data
Peterborough City Council,Children's & Education Services - Children's Social Care,Children Looked After,Supplies and Services - Transfer Payments,14/09/2011,406038,560.98,REVENUE,Redacted Personal Data
Peterborough City Council,Children's & Education Services - Children's Social Care,Children Looked After,Supplies and Services - Transfer Payments,14/09/2011,406039,560.98,REVENUE,Redacted Personal Data
Peterborough City Council,Children's & Education Services - Children's Social Care,Children Looked After,Supplies and Services - Transfer Payments,14/09/2011,406040,529.9,REVENUE,Redacted Personal Data
Peterborough City Council,Children's & Education Services - Children's Social Care,Children Looked After,Supplies and Services - Transfer Payments,14/09/2011,406041,560.98,REVENUE,Redacted Personal Data
Peterborough City Council,Children's & Education Services - Children's Social Care,Children Looked After,Supplies and Services - Transfer Payments,14/09/2011,406042,529.9,REVENUE,Redacted Personal Data
Peterborough City Council,Children's & Education Services - Children's Social Care,Children Looked After,Supplies and Services - Transfer Payments,14/09/2011,406044,529.9,REVENUE,Redacted Personal Data
Peterborough City Council,Children's & Education Services - Children's Social Care,Children Looked After,Supplies and Services - Transfer Payments,14/09/2011,406045,529.9,REVENUE,Redacted Personal Data
Peterborough City Council,Children's & Education Services - Children's Social Care,Children Looked After,Supplies and Services - Transfer Payments,14/09/2011,406046,529.9,REVENUE,Redacted Personal Data
Peterborough City Council,Children's & Education Services - Children's Social Care,Children Looked After,Supplies and Services - Transfer Payments,14/09/2011,406047,536.56,REVENUE,Redacted Personal Data
Peterborough City Council,Children's & Education Services - Children's Social Care,Children Looked After,Supplies and Services - Transfer Payments,14/09/2011,406050,560.98,REVENUE,Redacted Personal Data
Peterborough City Council,Children's & Education Services - Children's Social Care,Children Looked After,Supplies and Services - Transfer Payments,14/09/2011,406051,560.98,REVENUE,Redacted Personal Data
Peterborough City Council,Children's & Education Services - Children's Social Care,Children Looked After,Supplies and Services - Transfer Payments,14/09/2011,406052,560.98,REVENUE,Redacted Personal Data
Peterborough City Council,Children's & Education Services - Children's Social Care,Children Looked After,Supplies and Services - Transfer Payments,14/09/2011,406053,529.9,REVENUE,Redacted Personal Data
Peterborough City Council,Children's & Education Services - Children's Social Care,Children Looked After,Supplies and Services - Transfer Payments,14/09/2011,406054,745.71,REVENUE,Redacted Personal Data
Peterborough City Council,Children's & Education Services - Children's Social Care,Children Looked After,Supplies and Services - Transfer Payments,14/09/2011,406055,529.9,REVENUE,Redacted Personal Data
Peterborough City Council,Children's & Education Services - Children's Social Care,Children Looked After,Supplies and Services - Transfer Payments,14/09/2011,406056,529.9,REVENUE,Redacted Personal Data
Peterborough City Council,Children's & Education Services - Children's Social Care,Children Looked After,Supplies and Services - Transfer Payments,14/09/2011,406057,529.9,REVENUE,Redacted Personal Data
Peterborough City Council,Children's & Education Services - Children's Social Care,Children Looked After,Supplies and Services - Transfer Payments,14/09/2011,406066,560.98,REVENUE,Redacted Personal Data
Peterborough City Council,Children's & Education Services - Children's Social Care,Children Looked After,Supplies and Services - Transfer Payments,14/09/2011,406069,529.9,REVENUE,Redacted Personal Data
Peterborough City Council,Children's & Education Services - Children's Social Care,Children Looked After,Supplies and Services - Transfer Payments,14/09/2011,406070,745.71,REVENUE,Redacted Personal Data
Peterborough City Council,Children's & Education Services - Children's Social Care,Children Looked After,Supplies and Services - Transfer Payments,14/09/2011,406072,529.9,REVENUE,Redacted Personal Data
Peterborough City Council,Children's & Education Services - Children's Social Care,Children Looked After,Supplies and Services - Transfer Payments,14/09/2011,406075,560.98,REVENUE,Redacted Personal Data
Peterborough City Council,Children's & Education Services - Children's Social Care,Children Looked After,Supplies and Services - Transfer Payments,14/09/2011,406076,529.9,REVENUE,Redacted Personal Data
Peterborough City Council,Children's & Education Services - Children's Social Care,Children Looked After,Supplies and Services - Transfer Payments,14/09/2011,406080,560.98,REVENUE,Redacted Personal Data
Peterborough City Council,Children's & Education Services - Children's Social Care,Children Looked After,Supplies and Services - Transfer Payments,14/09/2011,406088,529.9,REVENUE,Redacted Personal Data
Peterborough City Council,Children's & Education Services - Children's Social Care,Children Looked After,Supplies and Services - Transfer Payments,14/09/2011,406090,661.36,REVENUE,Redacted Personal Data
Peterborough City Council,Children's & Education Services - Children's Social Care,Children Looked After,Supplies and Services - Transfer Payments,14/09/2011,406096,529.9,REVENUE,Redacted Personal Data
Peterborough City Council,Children's & Education Services - Children's Social Care,Children Looked After,Supplies and Services - Transfer Payments,14/09/2011,406099,745.71,REVENUE,Redacted Personal Data
Peterborough City Council,Children's & Education Services - Children's Social Care,Children Looked After,Supplies and Services - Transfer Payments,14/09/2011,406101,885.08,REVENUE,Redacted Personal Data
Peterborough City Council,Children's & Education Services - Children's Social Care,Children Looked After,Supplies and Services - Transfer Payments,14/09/2011,406104,529.9,REVENUE,Redacted Personal Data
Peterborough City Council,Children's & Education Services - Children's Social Care,Children Looked After,Supplies and Services - Transfer Payments,14/09/2011,406106,560.98,REVENUE,Redacted Personal Data
Peterborough City Council,Children's & Education Services - Children's Social Care,Children Looked After,Supplies and Services - Transfer Payments,14/09/2011,406109,571.83,REVENUE,Redacted Personal Data
Peterborough City Council,Children's & Education Services - Children's Social Care,Children Looked After,Supplies and Services - Transfer Payments,14/09/2011,406121,560.98,REVENUE,Redacted Personal Data
Peterborough City Council,Children's & Education Services - Children's Social Care,Children Looked After,Supplies and Services - Transfer Payments,14/09/2011,406139,529.9,REVENUE,Redacted Personal Data
Peterborough City Council,Children's & Education Services - Children's Social Care,Children Looked After,Supplies and Services - Transfer Payments,14/09/2011,406152,567.75,REVENUE,Redacted Personal Data
Peterborough City Council,Children's & Education Services - Children's Social Care,Children Looked After,Supplies and Services - Transfer Payments,14/09/2011,406153,1059.8,REVENUE,Redacted Personal Data
Peterborough City Council,Children's & Education Services - Children's Social Care,Other Children's & Families Services,Supplies and Services - Transfer Payments,14/09/2011,406162,600,REVENUE,Redacted Personal Data
Peterborough City Council,Children's & Education Services - Children's Social Care,Other Children's & Families Services,Supplies and Services - Transfer Payments,14/09/2011,406163,613.6,REVENUE,Redacted Personal Data
Peterborough City Council,Children's & Education Services - Children's Social Care,Children Looked After,Supplies and Services - Transfer Payments,14/09/2011,406199,885.08,REVENUE,Redacted Personal Data
Peterborough City Council,Children's & Education Services - Children's Social Care,Children Looked After,Supplies and Services - Transfer Payments,14/09/2011,406200,885.08,REVENUE,Redacted Personal Data
Peterborough City Council,Children's & Education Services - Children's Social Care,Children Looked After,Supplies and Services - Transfer Payments,14/09/2011,406201,885.08,REVENUE,Redacted Personal Data
Peterborough City Council,Children's & Education Services - Children's Social Care,Children Looked After,Supplies and Services - Transfer Payments,14/09/2011,406202,885.08,REVENUE,Redacted Personal Data
Peterborough City Council,Children's & Education Services - Children's Social Care,Children Looked After,Supplies and Services - Transfer Payments,14/09/2011,406241,1203.88,REVENUE,Redacted Personal Data
Peterborough City Council,Children's & Education Services - Children's Social Care,Children Looked After,Supplies and Services - Transfer Payments,14/09/2011,406244,647.43,REVENUE,Redacted Personal Data
Peterborough City Council,Children's & Education Services - Children's Social Care,Other Children's & Families Services,Supplies and Services - Transfer Payments,14/09/2011,406339,669.48,REVENUE,Redacted Personal Data
Peterborough City Council,Children's & Education Services - Children's Social Care,Children Looked After,Supplies and Services - Transfer Payments,14/09/2011,406342,885.08,REVENUE,Redacted Personal Data
Peterborough City Council,Children's & Education Services - Children's Social Care,Children Looked After,Supplies and Services - Transfer Payments,14/09/2011,406370,529.9,REVENUE,Redacted Personal Data
Peterborough City Council,Children's & Education Services - Children's Social Care,Children Looked After,Supplies and Services - Transfer Payments,14/09/2011,406372,529.9,REVENUE,Redacted Personal Data
Peterborough City Council,Children's & Education Services - Children's Social Care,Children Looked After,Supplies and Services - Transfer Payments,14/09/2011,406406,529.9,REVENUE,Redacted Personal Data
Peterborough City Council,Children's & Education Services - Children's Social Care,Children Looked After,Supplies and Services - Transfer Payments,14/09/2011,406407,529.9,REVENUE,Redacted Personal Data
Peterborough City Council,Children's & Education Services - Children's Social Care,Family Support Services,Supplies and Services,14/09/2011,406434,1148.22,REVENUE,Redacted Personal Data
Peterborough City Council,Children's & Education Services - Children's Social Care,Support Services & Management Costs,Employees,14/09/2011,406438,2000,REVENUE,Redacted Personal Data
Peterborough City Council,Children's & Education Services - Children's Social Care,Children Looked After,Supplies and Services - Transfer Payments,14/09/2011,406441,529.9,REVENUE,Redacted Personal Data
Peterborough City Council,More than one Service Area Category,More than one Service Division,More than one Expenses Type,14/09/2011,406444,1228.87,REVENUE,Peterborough City Council
Peterborough City Council,More than one Service Area Category,More than one Service Division,Balance Sheet,14/09/2011,406453,1107.48,Balance Sheet,Cambridgeshire County Council
Peterborough City Council,More than one Service Area Category,More than one Service Division,Balance Sheet,14/09/2011,406455,3432.67,Balance Sheet,Cambridgeshire County Council
Peterborough City Council,Children's & Education Services - Children's Social Care,Children Looked After,Premises,14/09/2011,406482,-810.85,REVENUE,Eastern Shires Purchasing Organisation
Peterborough City Council,Support Services,Support Services,Supplies and Services,14/09/2011,406483,36600,REVENUE,4-5 Gray's Inn Square
Peterborough City Council,Support Services,Support Services,Supplies and Services,14/09/2011,406489,833.98,REVENUE,Cambridgeshire County Council
Peterborough City Council,Children's & Education Services - Children's Social Care,Children Looked After,Supplies and Services - Transfer Payments,16/09/2011,381589,3072.63,REVENUE,IAS TACT
Peterborough City Council,Children's & Education Services - Children's Social Care,Children Looked After,Supplies and Services - Transfer Payments,16/09/2011,384467,3285.29,REVENUE,IAS TACT
Peterborough City Council,Children's & Education Services - Children's Social Care,Children Looked After,Supplies and Services - Transfer Payments,16/09/2011,384468,6145.26,REVENUE,IAS TACT
Peterborough City Council,Capital,Capital,Capital Pending Update to BS,16/09/2011,395974,26076.73,CAPITAL,Active Energy Ltd
Peterborough City Council,Support Services,Support Services,Employees,16/09/2011,398579,1764,REVENUE,Sellick Partnership Group Limited
Peterborough City Council,Support Services,Support Services,Supplies and Services,16/09/2011,400044,4015.8,REVENUE,Capita Business Services Ltd
Peterborough City Council,Support Services,Support Services,Supplies and Services,16/09/2011,400053,2409.48,REVENUE,Capita Business Services Ltd
Peterborough City Council,"Cultural, Environmental and Planning Services",Economic Development,Employees,16/09/2011,402044,1374.47,REVENUE,Hays Specialist Recruitment Ltd
Peterborough City Council,Capital,Capital,Capital Pending Update to BS,16/09/2011,402330,16731.6,CAPITAL,UK Power Networks (operations) Ltd
Peterborough City Council,"Highways, Roads & Transport Services",Street Lighting,Premises,16/09/2011,402931,2357.98,REVENUE,Southern Electric
Peterborough City Council,"Highways, Roads & Transport Services",Street Lighting,Premises,16/09/2011,402932,-2196.13,REVENUE,Southern Electric
Peterborough City Council,Children's & Education Services - Education,Non-School Funding,Supplies and Services,16/09/2011,403020,12747.6,REVENUE,Woodston Playgroup
Peterborough City Council,"Highways, Roads & Transport Services",Street Lighting,Premises,16/09/2011,404442,47734.16,REVENUE,Southern Electric
Peterborough City Council,Children's & Education Services - Education,Secondary,Premises,16/09/2011,404445,2261.07,REVENUE,Npower Ltd
Peterborough City Council,More than one Service Area Category,More than one Service Division,Supplies and Services,16/09/2011,404768,1230,REVENUE,Redacted Personal Data
Peterborough City Council,Support Services,Support Services,Premises,16/09/2011,405659,49695,REVENUE,Debenham Tie Leung (DTZ)
Peterborough City Council,Housing Services,Private Sector Housing Renewal,Supplies and Services,16/09/2011,406447,939.25,REVENUE,B S Builders & Carpenters
Peterborough City Council,Support Services,Support Services,Premises,16/09/2011,406484,1176.1,REVENUE,EDF Energy Networks Ltd
Peterborough City Council,"Cultural, Environmental and Planning Services",Economic Development,Third Party Payments,16/09/2011,406485,52000,REVENUE,Opportunity Peterborough
Peterborough City Council,Support Services,Support Services,Premises,16/09/2011,406488,5201.7,REVENUE,Npower Ltd
Peterborough City Council,Children's & Education Services - Children's Social Care,Family Support Services,Supplies and Services,16/09/2011,406524,1852.5,REVENUE,Redacted Personal Data
Peterborough City Council,"Cultural, Environmental and Planning Services",Economic Development,Transport,16/09/2011,406573,1702.08,REVENUE,Traffic Management Services
Peterborough City Council,Children's & Education Services - Children's Social Care,Children Looked After,Supplies and Services,16/09/2011,406604,602.2,REVENUE,Voice
Peterborough City Council,Capital,Capital,Capital Pending Update to BS,16/09/2011,406605,1305752.4,CAPITAL,Kier Eastern
Peterborough City Council,Capital,Capital,Capital Pending Update to BS,16/09/2011,406629,195264.14,CAPITAL,Lindum Group Ltd
Peterborough City Council,Support Services,Support Services,Premises,16/09/2011,406698,4767.91,REVENUE,Anglian Water
Peterborough City Council,Children's & Education Services - Education,Non-School Funding,Supplies and Services,16/09/2011,406705,1170,REVENUE,The Learning Tree Kindergarten
Peterborough City Council,Children's & Education Services - Education,Primary,Supplies and Services,16/09/2011,406712,800,REVENUE,Holycroft Primary School
Peterborough City Council,Children's & Education Services - Education,Non-School Funding,Supplies and Services,16/09/2011,406724,653.4,REVENUE,Parnwell Family Project Playgroup
Peterborough City Council,"Cultural, Environmental and Planning Services",Development Control,Supplies and Services,16/09/2011,406746,735,REVENUE,Johnston Press Midlands Division
Peterborough City Council,"Cultural, Environmental and Planning Services",Planning Policy,Supplies and Services,16/09/2011,406756,5000,REVENUE,Cambridgeshire County Council
Peterborough City Council,More than one Service Area Category,More than one Service Division,Equity,16/09/2011,406761,1140,"Mixture of Capital, Revenue and/or Balance Sheet",William H Brown
Peterborough City Council,Children's & Education Services - Education,Secondary,Premises,16/09/2011,406766,-690.83,REVENUE,Southern Electric
Peterborough City Council,"Cultural, Environmental and Planning Services",Culture & Heritage,Premises,16/09/2011,406772,-1659.25,REVENUE,Southern Electric
Peterborough City Council,More than one Service Area Category,More than one Service Division,Balance Sheet,16/09/2011,406783,128733.94,Balance Sheet,HM Revenues & Customs
Peterborough City Council,More than one Service Area Category,More than one Service Division,Balance Sheet,16/09/2011,406788,1564369.88,Balance Sheet,HM Revenues & Customs
Peterborough City Council,More than one Service Area Category,More than one Service Division,Balance Sheet,16/09/2011,406790,10247.12,Balance Sheet,HM Revenues & Customs
Peterborough City Council,More than one Service Area Category,More than one Service Division,Balance Sheet,16/09/2011,406793,13080.78,Balance Sheet,HM Revenues & Customs
Peterborough City Council,"Cultural, Environmental and Planning Services",Support Services & Management Costs,Premises,16/09/2011,406796,-942.96,REVENUE,Southern Electric
Peterborough City Council,More than one Service Area Category,More than one Service Division,Balance Sheet,16/09/2011,406797,4616.16,Balance Sheet,HM Revenues & Customs
Peterborough City Council,Deficit/(Surplus) on Trading Undertakings,Trading Account Surpluses & Deficits,Premises,16/09/2011,406799,-1598.96,REVENUE,Anglian Water
Peterborough City Council,"Cultural, Environmental and Planning Services",Recreation & Sport,Premises,16/09/2011,406804,-2891.66,REVENUE,Southern Electric
Peterborough City Council,Deficit/(Surplus) on Trading Undertakings,Trading Account Surpluses & Deficits,Premises,16/09/2011,406813,-4077.29,REVENUE,Shell Gas Direct Ltd
Peterborough City Council,Capital,Capital,Capital Pending Update to BS,16/09/2011,406835,1006.46,CAPITAL,The Bench 504
Peterborough City Council,Support Services,Support Services,Premises,16/09/2011,406840,3145.27,REVENUE,Southern Electric
Peterborough City Council,Deficit/(Surplus) on Trading Undertakings,Trading Account Surpluses & Deficits,Supplies and Services,16/09/2011,406867,966.24,REVENUE,Barron Clark Castings Ltd
Peterborough City Council,Deficit/(Surplus) on Trading Undertakings,Trading Account Surpluses & Deficits,Supplies and Services,16/09/2011,406869,837.41,REVENUE,Barron Clark Castings Ltd
Peterborough City Council,Deficit/(Surplus) on Trading Undertakings,Trading Account Surpluses & Deficits,Supplies and Services,16/09/2011,406871,995.4,REVENUE,Barron Clark Castings Ltd
Peterborough City Council,Deficit/(Surplus) on Trading Undertakings,Trading Account Surpluses & Deficits,Supplies and Services,16/09/2011,406874,601.92,REVENUE,Barron Clark Castings Ltd
Peterborough City Council,Deficit/(Surplus) on Trading Undertakings,Trading Account Surpluses & Deficits,Supplies and Services,16/09/2011,406878,2077.56,REVENUE,Barron Clark Castings Ltd
Peterborough City Council,Children's & Education Services - Children's Social Care,Children Looked After,Supplies and Services - Transfer Payments,16/09/2011,406888,2920.4,REVENUE,National Fostering Agency
Peterborough City Council,Children's & Education Services - Children's Social Care,Children Looked After,Supplies and Services - Transfer Payments,16/09/2011,406889,3216.6,REVENUE,National Fostering Agency
Peterborough City Council,Children's & Education Services - Children's Social Care,Children Looked After,Supplies and Services - Transfer Payments,16/09/2011,406894,1861.24,REVENUE,National Fostering Agency
Peterborough City Council,Children's & Education Services - Children's Social Care,Children Looked After,Supplies and Services - Transfer Payments,16/09/2011,406909,3260.89,REVENUE,I S P
Peterborough City Council,Children's & Education Services - Children's Social Care,Children Looked After,Supplies and Services - Transfer Payments,16/09/2011,406912,3260.89,REVENUE,I S P
Peterborough City Council,Children's & Education Services - Children's Social Care,Children Looked After,Supplies and Services - Transfer Payments,16/09/2011,406914,5637.97,REVENUE,I S P
Peterborough City Council,Children's & Education Services - Children's Social Care,Children Looked After,Supplies and Services - Transfer Payments,16/09/2011,406916,5637.97,REVENUE,I S P
Peterborough City Council,Children's & Education Services - Children's Social Care,Children Looked After,Supplies and Services - Transfer Payments,16/09/2011,406917,8289.71,REVENUE,I S P
Peterborough City Council,Capital,Capital,Capital Pending Update to BS,19/09/2011,383194,3480,CAPITAL,Barker Storey Matthews
Peterborough City Council,Children's & Education Services - Children's Social Care,Other Children's & Families Services,Supplies and Services,19/09/2011,385414,570.96,REVENUE,CINTRA Ltd
Peterborough City Council,Children's & Education Services - Children's Social Care,Other Children's & Families Services,Supplies and Services,19/09/2011,394902,2796.7,REVENUE,CINTRA Ltd
Peterborough City Council,Children's & Education Services - Children's Social Care,Children Looked After,Supplies and Services,19/09/2011,397902,7680,REVENUE,On Track Education Services Ltd
Peterborough City Council,Children's & Education Services - Children's Social Care,Other Children's & Families Services,Supplies and Services,19/09/2011,398782,3602.95,REVENUE,CINTRA Ltd
Peterborough City Council,"Highways, Roads & Transport Services",Environmental Initiatives,Supplies and Services,19/09/2011,400302,793.77,REVENUE,Cyclescheme Ltd
Peterborough City Council,Children's & Education Services - Education,Secondary,Supplies and Services,19/09/2011,400436,905.52,REVENUE,IIC by Education (P'boro) Ltd
Peterborough City Council,Children's & Education Services - Children's Social Care,Support Services & Management Costs,Employees,19/09/2011,400465,2675,REVENUE,Redacted Personal Data
Peterborough City Council,Children's & Education Services - Children's Social Care,Support Services & Management Costs,Employees,19/09/2011,400491,2520,REVENUE,Redacted Personal Data
Peterborough City Council,Children's & Education Services - Children's Social Care,Children Looked After,Supplies and Services - Transfer Payments,19/09/2011,400531,9247.08,REVENUE,Lovell's Hall
Peterborough City Council,Children's & Education Services - Children's Social Care,Children Looked After,More than one Expenses Type,19/09/2011,400540,11512.84,REVENUE,Lovell's Hall
Peterborough City Council,Capital,Capital,Capital Pending Update to BS,19/09/2011,400565,124097.04,CAPITAL,Volker Highways MEWS Ltd
Peterborough City Council,"Cultural, Environmental and Planning Services",Economic Development,Supplies and Services,19/09/2011,400614,12000,REVENUE,Centre for Cities
Peterborough City Council,Children's & Education Services - Children's Social Care,Children Looked After,Supplies and Services - Transfer Payments,19/09/2011,401154,3504,REVENUE,Archway Care Ltd
Peterborough City Council,Children's & Education Services - Children's Social Care,Family Support Services,Transport,19/09/2011,401158,520,REVENUE,W H Fowler & Son (Coaches) Ltd
Peterborough City Council,Children's & Education Services - Children's Social Care,Other Children's & Families Services,Employees,19/09/2011,401416,2151.68,REVENUE,Care Recruitment UK Ltd
Peterborough City Council,Adult Social Care,Other Adult Services,Third Party Payments,19/09/2011,401433,5988,REVENUE,Weymouth Aftercare Centre
Peterborough City Council,Children's & Education Services - Children's Social Care,Other Children's & Families Services,Employees,19/09/2011,401438,1554,REVENUE,Blue Group International Ltd
Peterborough City Council,Housing Services,Homelessness,Employees,19/09/2011,401457,577.29,REVENUE,Anne Corder Recruitment
Peterborough City Council,Housing Services,Homelessness,Employees,19/09/2011,401458,632.64,REVENUE,Anne Corder Recruitment
Peterborough City Council,"Cultural, Environmental and Planning Services",Waste Collection,Supplies and Services,19/09/2011,401493,11231.16,REVENUE,H W Martin Waste Ltd
Peterborough City Council,Support Services,Support Services,Supplies and Services,19/09/2011,401503,44840.1,REVENUE,Microsoft Ireland Operations Ltd
Peterborough City Council,"Highways, Roads & Transport Services","Transport planning, policy and strategy",Transport,19/09/2011,401509,517.19,REVENUE,Burnt Tree Group
Peterborough City Council,Capital,Capital,Capital Pending Update to BS,19/09/2011,401586,2488.19,CAPITAL,Mott Macdonald
Peterborough City Council,Deficit/(Surplus) on Trading Undertakings,Trading Account Surpluses & Deficits,Supplies and Services,19/09/2011,401617,612.18,REVENUE,Godric Engineering Ltd
Peterborough City Council,"Cultural, Environmental and Planning Services","Cemetery, Crematorium & Mortuary Services",Premises,19/09/2011,401636,1806.58,REVENUE,Facultatieve Technologies Ltd
Peterborough City Council,"Highways, Roads & Transport Services",Public Transport,Supplies and Services,19/09/2011,401638,912.18,REVENUE,Unwin Safety Systems
Peterborough City Council,Children's & Education Services - Education,Non-School Funding,Supplies and Services,19/09/2011,401644,1188,REVENUE,CBS Outdoor Limited
Peterborough City Council,More than one Service Area Category,More than one Service Division,Supplies and Services,19/09/2011,402019,4740,REVENUE,Redacted Personal Data
Peterborough City Council,Children's & Education Services - Education,Non-School Funding,Supplies and Services,19/09/2011,402026,3008.4,REVENUE,CBS Outdoor Limited
Peterborough City Council,Capital,Capital,Capital Pending Update to BS,19/09/2011,402550,42083.15,CAPITAL,Burmor Construction
Peterborough City Council,Children's & Education Services - Children's Social Care,Other Children's & Families Services,Employees,19/09/2011,402670,1658.78,REVENUE,Blue Group International Ltd
Peterborough City Council,Capital,Capital,Capital Pending Update to BS,19/09/2011,402678,65494.54,CAPITAL,L Garfield (Builders) Ltd
Peterborough City Council,Housing Services,Homelessness,Supplies and Services,19/09/2011,402760,638.6,REVENUE,Cross Keys Homes
Peterborough City Council,Children's & Education Services - Children's Social Care,Other Children's & Families Services,Employees,19/09/2011,402803,1687.2,REVENUE,Medicare First
Peterborough City Council,Children's & Education Services - Children's Social Care,Other Children's & Families Services,Employees,19/09/2011,402804,1567.8,REVENUE,Medicare First
Peterborough City Council,Children's & Education Services - Children's Social Care,Other Children's & Families Services,Employees,19/09/2011,402805,1731.6,REVENUE,Medicare First
Peterborough City Council,Children's & Education Services - Children's Social Care,Other Children's & Families Services,Employees,19/09/2011,402806,1731.6,REVENUE,Medicare First
Peterborough City Council,Capital,Capital,Capital Pending Update to BS,19/09/2011,403161,37014.93,CAPITAL,L Garfield (Builders) Ltd
Peterborough City Council,"Highways, Roads & Transport Services",Parking Services,Employees,19/09/2011,403215,537.6,REVENUE,Unity Recruitment Ltd
Peterborough City Council,Children's & Education Services - Education,All Schools - apportion across sectors,Supplies and Services,19/09/2011,404462,974.04,REVENUE,ES4S Ltd
Peterborough City Council,Children's & Education Services - Education,All Schools - apportion across sectors,Supplies and Services,19/09/2011,404463,968.86,REVENUE,ES4S Ltd
Peterborough City Council,Housing Services,Private Sector Housing Renewal,Supplies and Services,19/09/2011,404765,1320,REVENUE,Redacted Personal Data
Peterborough City Council,Deficit/(Surplus) on Trading Undertakings,Trading Account Surpluses & Deficits,Supplies and Services,19/09/2011,406586,2697.6,REVENUE,Princebuild Limited
Peterborough City Council,Deficit/(Surplus) on Trading Undertakings,Trading Account Surpluses & Deficits,Supplies and Services,19/09/2011,406863,628.06,REVENUE,Barron Clark Castings Ltd
Peterborough City Council,Deficit/(Surplus) on Trading Undertakings,Trading Account Surpluses & Deficits,Supplies and Services,19/09/2011,406873,601.92,REVENUE,Barron Clark Castings Ltd
Peterborough City Council,Deficit/(Surplus) on Trading Undertakings,Trading Account Surpluses & Deficits,Supplies and Services,19/09/2011,406877,1053.36,REVENUE,Barron Clark Castings Ltd
Peterborough City Council,Deficit/(Surplus) on Trading Undertakings,Trading Account Surpluses & Deficits,Supplies and Services,19/09/2011,406879,1413.34,REVENUE,Barron Clark Castings Ltd
Peterborough City Council,Children's & Education Services - Children's Social Care,Children Looked After,Supplies and Services - Transfer Payments,19/09/2011,406886,3116.12,REVENUE,National Fostering Agency
Peterborough City Council,Children's & Education Services - Children's Social Care,Children Looked After,Supplies and Services - Transfer Payments,19/09/2011,406887,667.74,REVENUE,National Fostering Agency
Peterborough City Council,Children's & Education Services - Education,DSG income don't include,Supplies and Services,19/09/2011,406907,3280.03,REVENUE,Redacted Personal Data
Peterborough City Council,Children's & Education Services - Children's Social Care,Children Looked After,Supplies and Services - Transfer Payments,19/09/2011,406911,3260.89,REVENUE,I S P
Peterborough City Council,Children's & Education Services - Children's Social Care,Children Looked After,Supplies and Services - Transfer Payments,19/09/2011,406913,3260.89,REVENUE,I S P
Peterborough City Council,Children's & Education Services - Children's Social Care,Children Looked After,Supplies and Services - Transfer Payments,19/09/2011,406919,8289.71,REVENUE,I S P
Peterborough City Council,"Cultural, Environmental and Planning Services",Culture & Heritage,Supplies and Services,19/09/2011,406922,2146.92,REVENUE,Pearce Hire
Peterborough City Council,Children's & Education Services - Children's Social Care,Children Looked After,Supplies and Services,19/09/2011,406965,1890,REVENUE,IAS TACT
Peterborough City Council,Deficit/(Surplus) on Trading Undertakings,Trading Account Surpluses & Deficits,Supplies and Services,19/09/2011,406999,2371.92,REVENUE,Cognito Ltd
Peterborough City Council,Children's & Education Services - Education,All Schools - apportion across sectors,Supplies and Services,19/09/2011,407002,500,REVENUE,Peterborough Provider Services
Peterborough City Council,Children's & Education Services - Children's Social Care,Children Looked After,Supplies and Services,19/09/2011,407007,5666,REVENUE,IAS TACT
Peterborough City Council,Children's & Education Services - Children's Social Care,Children Looked After,Supplies and Services - Transfer Payments,19/09/2011,407014,3414.34,REVENUE,National Fostering Agency
Peterborough City Council,Deficit/(Surplus) on Trading Undertakings,Trading Account Surpluses & Deficits,Supplies and Services,19/09/2011,407023,985,REVENUE,Apex Training Services
Peterborough City Council,Children's & Education Services - Children's Social Care,Children Looked After,Employees,19/09/2011,407028,1252.8,REVENUE,Textbook Teachers
Peterborough City Council,Children's & Education Services - Children's Social Care,Children Looked After,Employees,19/09/2011,407029,522,REVENUE,Textbook Teachers
Peterborough City Council,Deficit/(Surplus) on Trading Undertakings,Trading Account Surpluses & Deficits,Premises,19/09/2011,407034,510.09,REVENUE,L Garfield (Builders) Ltd
Peterborough City Council,"Cultural, Environmental and Planning Services","Cemetery, Crematorium & Mortuary Services",Supplies and Services,19/09/2011,407056,577.36,REVENUE,Konica Minolta Bus.Sol. East Ltd
Peterborough City Council,"Cultural, Environmental and Planning Services","Cemetery, Crematorium & Mortuary Services",Supplies and Services,19/09/2011,407057,643.17,REVENUE,Konica Minolta Bus.Sol. East Ltd
Peterborough City Council,Children's & Education Services - Children's Social Care,Children Looked After,Supplies and Services - Transfer Payments,19/09/2011,407060,2265.76,REVENUE,Lovell's Hall
Peterborough City Council,Children's & Education Services - Children's Social Care,Youth Justice,Supplies and Services,19/09/2011,407063,65262.06,REVENUE,Cambridgeshire County Council
Peterborough City Council,"Cultural, Environmental and Planning Services",Recreation & Sport,Premises,19/09/2011,407079,1301.86,REVENUE,Savills L&P Ltd
Peterborough City Council,"Cultural, Environmental and Planning Services",Waste Disposal,Supplies and Services,19/09/2011,407084,2700,REVENUE,FSI (FM Solutions) Ltd
Peterborough City Council,Children's & Education Services - Education,Primary,Supplies and Services,19/09/2011,407090,720,REVENUE,The Nurture Group Network
Peterborough City Council,Children's & Education Services - Children's Social Care,More than one Service Division,Supplies and Services,21/09/2011,381241,1415.6,REVENUE,R S P LTD
Peterborough City Council,"Cultural, Environmental and Planning Services",More than one Service Division,More than one Expenses Type,21/09/2011,391358,34190.1,REVENUE,Vivacity Culture and Leisure
Peterborough City Council,More than one Service Area Category,More than one Service Division,Balance Sheet,21/09/2011,392733,1026.46,Balance Sheet,Redacted Personal Data
Peterborough City Council,Children's & Education Services - Children's Social Care,Family Support Services,Employees,21/09/2011,395441,4247.13,REVENUE,Peterborough Provider Services
Peterborough City Council,Children's & Education Services - Children's Social Care,Children Looked After,More than one Expenses Type,21/09/2011,397053,11512.84,REVENUE,Lovell's Hall
Peterborough City Council,Support Services,Support Services,Premises,21/09/2011,398190,3115.2,REVENUE,Leeton Electrical Ltd
Peterborough City Council,Support Services,Support Services,Premises,21/09/2011,398191,4315.2,REVENUE,Leeton Electrical Ltd
Peterborough City Council,Deficit/(Surplus) on Trading Undertakings,Trading Account Surpluses & Deficits,Supplies and Services,21/09/2011,399936,3588.48,REVENUE,Perkins Engines Co Ltd
Peterborough City Council,Capital,Capital,Capital Pending Update to BS,21/09/2011,400024,25557,CAPITAL,Imperial Civil Enforcement Solutions
Peterborough City Council,Children's & Education Services - Children's Social Care,Other Children's & Families Services,Employees,21/09/2011,400453,1609.5,REVENUE,Care Recruitment UK Ltd
Peterborough City Council,Children's & Education Services - Education,Non-School Funding,Supplies and Services,21/09/2011,400535,2002.5,REVENUE,East Anglia's Childrens Hospices
Peterborough City Council,Children's & Education Services - Education,Non-School Funding,Supplies and Services,21/09/2011,400539,1602,REVENUE,East Anglia's Childrens Hospices
Peterborough City Council,Capital,Capital,Capital Pending Update to BS,21/09/2011,401155,48824.1,CAPITAL,Portakabin Ltd
Peterborough City Council,Capital,Capital,Capital Pending Update to BS,21/09/2011,401157,14646.04,CAPITAL,Portakabin Ltd
Peterborough City Council,Capital,Capital,Capital Pending Update to BS,21/09/2011,401425,1000000,CAPITAL,Ely Diocesan Board of Finance
Peterborough City Council,Central Services to the Public,Local Tax,Employees,21/09/2011,401531,1843.2,REVENUE,The Synergy Group
Peterborough City Council,Capital,Capital,Capital Pending Update to BS,21/09/2011,401555,9072,CAPITAL,Hyder Consulting (UK) Ltd
Peterborough City Council,Deficit/(Surplus) on Trading Undertakings,Trading Account Surpluses & Deficits,Supplies and Services,21/09/2011,401557,2565,REVENUE,Shield Engineering (Syston) Ltd
Peterborough City Council,"Cultural, Environmental and Planning Services",Development Control,Supplies and Services,21/09/2011,401566,529.19,REVENUE,Johnston Press Midlands Division
Peterborough City Council,"Highways, Roads & Transport Services","Environmental, Safety & Routine Maintenance",Supplies and Services,21/09/2011,401574,1878.01,REVENUE,Glasdon UK Ltd
Peterborough City Council,Children's & Education Services - Children's Social Care,Children Looked After,Employees,21/09/2011,401588,2162.9,REVENUE,Advantage Healthcare Nursing & Care Ltd
Peterborough City Council,Children's & Education Services - Children's Social Care,Children Looked After,Supplies and Services - Transfer Payments,21/09/2011,401594,12090,REVENUE,MJ Childrens Services
Peterborough City Council,Children's & Education Services - Children's Social Care,Children Looked After,Supplies and Services - Transfer Payments,21/09/2011,401595,2435.71,REVENUE,MJ Childrens Services
Peterborough City Council,Children's & Education Services - Children's Social Care,Children Looked After,Supplies and Services - Transfer Payments,21/09/2011,401597,13330,REVENUE,MJ Childrens Services
Peterborough City Council,Children's & Education Services - Children's Social Care,Children Looked After,Supplies and Services - Transfer Payments,21/09/2011,401598,13330,REVENUE,MJ Childrens Services
Peterborough City Council,"Cultural, Environmental and Planning Services",Economic Development,Employees,21/09/2011,401601,2158.92,REVENUE,Hays Specialist Recruitment Ltd
Peterborough City Council,"Cultural, Environmental and Planning Services",Economic Development,Employees,21/09/2011,401602,1890,REVENUE,Hays Specialist Recruitment Ltd
Peterborough City Council,"Cultural, Environmental and Planning Services",Planning Policy,Supplies and Services,21/09/2011,401621,512.06,REVENUE,Danwood Finance Ltd
Peterborough City Council,Capital,Capital,Capital Pending Update to BS,21/09/2011,401628,900,CAPITAL,Barker Storey Matthews
Peterborough City Council,Housing Services,Private Sector Housing Renewal,Supplies and Services,21/09/2011,401635,1037,REVENUE,Fletton Electrics Ltd
Peterborough City Council,Capital,Capital,Capital Pending Update to BS,21/09/2011,401643,638.2,CAPITAL,Cambridgeshire County Council
Peterborough City Council,More than one Service Area Category,More than one Service Division,Supplies and Services,21/09/2011,401680,570.69,REVENUE,TNT Post Midlands Ltd
Peterborough City Council,Support Services,Support Services,More than one Expenses Type,21/09/2011,401683,28578.74,REVENUE,NB Real Estate
Peterborough City Council,Support Services,Support Services,Premises,21/09/2011,401684,36022.98,REVENUE,NB Real Estate
Peterborough City Council,Support Services,Support Services,Premises,21/09/2011,401685,34871.04,REVENUE,NB Real Estate
Peterborough City Council,"Cultural, Environmental and Planning Services",Community Safety (CCTV),Supplies and Services,21/09/2011,401810,8892.16,REVENUE,Quadrant Security Group Ltd
Peterborough City Council,"Cultural, Environmental and Planning Services",Economic Development,Employees,21/09/2011,401973,1425.6,REVENUE,Hays Specialist Recruitment Ltd
Peterborough City Council,Children's & Education Services - Children's Social Care,Family Support Services,Employees,21/09/2011,401974,1082.16,REVENUE,Swim
Peterborough City Council,Support Services,Support Services,Employees,21/09/2011,402013,1764,REVENUE,Sellick Partnership Group Limited
Peterborough City Council,Children's & Education Services - Children's Social Care,Support Services & Management Costs,Supplies and Services,21/09/2011,402023,3619.73,REVENUE,Symbol
Peterborough City Council,Support Services,Support Services,Supplies and Services,21/09/2011,402090,685.01,REVENUE,Edenred
Peterborough City Council,Central Services to the Public,Local Tax,Supplies and Services,21/09/2011,402122,2760.42,REVENUE,Financial Data Management
Peterborough City Council,Children's & Education Services - Children's Social Care,Other Children's & Families Services,Employees,21/09/2011,402250,1894.99,REVENUE,Sanctuary Personnel Ltd
Peterborough City Council,Children's & Education Services - Children's Social Care,Other Children's & Families Services,Employees,21/09/2011,402251,1894.99,REVENUE,Sanctuary Personnel Ltd
Peterborough City Council,Children's & Education Services - Children's Social Care,Other Children's & Families Services,Employees,21/09/2011,402253,1894.99,REVENUE,Sanctuary Personnel Ltd
Peterborough City Council,Children's & Education Services - Children's Social Care,Other Children's & Families Services,Employees,21/09/2011,402270,1894.99,REVENUE,Sanctuary Personnel Ltd
Peterborough City Council,"Cultural, Environmental and Planning Services",Waste Collection,Supplies and Services,21/09/2011,402650,1441.55,REVENUE,Waste Recycling Ltd
Peterborough City Council,Support Services,Support Services,Employees,21/09/2011,402675,1013.72,REVENUE,Sacco Mann Ltd
Peterborough City Council,Children's & Education Services - Children's Social Care,Children Looked After,Supplies and Services,21/09/2011,402718,1390,REVENUE,Redacted Personal Data
Peterborough City Council,Children's & Education Services - Children's Social Care,Other Children's & Families Services,Employees,21/09/2011,402741,1821.73,REVENUE,Randstad Care Ltd
Peterborough City Council,Children's & Education Services - Children's Social Care,Support Services & Management Costs,Employees,21/09/2011,402742,1570.46,REVENUE,Randstad Care Ltd
Peterborough City Council,Children's & Education Services - Children's Social Care,Children Looked After,Employees,21/09/2011,402744,884.52,REVENUE,Randstad Care Ltd
Peterborough City Council,Children's & Education Services - Children's Social Care,Other Children's & Families Services,Supplies and Services,21/09/2011,402766,39250,REVENUE,Cambridgeshire County Council
Peterborough City Council,Housing Services,Private Sector Housing Renewal,Supplies and Services,21/09/2011,402839,1298.8,REVENUE,T G M Maintenance
Peterborough City Council,"Cultural, Environmental and Planning Services",Economic Development,Employees,21/09/2011,402844,1270.94,REVENUE,Randstad CPE
Peterborough City Council,Children's & Education Services - Children's Social Care,Service Strategy,Employees,21/09/2011,402870,1448.1,REVENUE,Gosfield House
Peterborough City Council,More than one Service Area Category,More than one Service Division,Supplies and Services,21/09/2011,402914,2897.64,REVENUE,TNT Post Midlands Ltd
Peterborough City Council,Children's & Education Services - Children's Social Care,Other Children's & Families Services,Third Party Payments,21/09/2011,403001,5000,REVENUE,Blumint
Peterborough City Council,"Highways, Roads & Transport Services","Transport planning, policy and strategy",Supplies and Services,21/09/2011,403166,917.46,REVENUE,Johnston Press Midlands Division
Peterborough City Council,Children's & Education Services - Children's Social Care,Support Services & Management Costs,Employees,21/09/2011,403168,1688,REVENUE,Anglia Ruskin University
Peterborough City Council,"Highways, Roads & Transport Services",Street Lighting,Supplies and Services,21/09/2011,403178,5222.23,REVENUE,Volker Highways MEWS Ltd
Peterborough City Council,"Highways, Roads & Transport Services",Street Lighting,Supplies and Services,21/09/2011,403179,13932.23,REVENUE,Volker Highways MEWS Ltd
Peterborough City Council,"Highways, Roads & Transport Services",Street Lighting,Supplies and Services,21/09/2011,403180,800.71,REVENUE,Volker Highways MEWS Ltd
Peterborough City Council,Support Services,Support Services,Supplies and Services,21/09/2011,403252,8100,REVENUE,Homes & Communities Agency
Peterborough City Council,Children's & Education Services - Children's Social Care,Support Services & Management Costs,Supplies and Services,21/09/2011,403253,1900,REVENUE,HM Courts and Tribunals Service (HMCTS)
Peterborough City Council,Children's & Education Services - Education,Non-School Funding,Premises,21/09/2011,404767,4537.2,REVENUE,Bull & Co Ltd
Peterborough City Council,Children's & Education Services - Education,Non-School Funding,Premises,21/09/2011,404769,3456,REVENUE,Bull & Co Ltd
Peterborough City Council,Children's & Education Services - Education,Non-School Funding,Supplies and Services,21/09/2011,404770,27790.06,REVENUE,Bull & Co Ltd
Peterborough City Council,Children's & Education Services - Education,Non-School Funding,Supplies and Services,21/09/2011,404775,2534.4,REVENUE,Bull & Co Ltd
Peterborough City Council,"Cultural, Environmental and Planning Services",Economic Development,Employees,21/09/2011,406261,1478.41,REVENUE,Hays Specialist Recruitment Ltd
Peterborough City Council,"Highways, Roads & Transport Services","Environmental, Safety & Routine Maintenance",Supplies and Services,21/09/2011,406530,1189.6,REVENUE,Telent Technology Services Ltd
Peterborough City Council,Capital,Capital,Capital Pending Update to BS,21/09/2011,406558,756,CAPITAL,Peterborough Tree Services Ltd
Peterborough City Council,Housing Services,Homelessness,Supplies and Services,21/09/2011,406628,1248,REVENUE,Redacted Personal Data
Peterborough City Council,Support Services,Support Services,Supplies and Services,21/09/2011,406701,7701.25,REVENUE,Stewart Business Software
Peterborough City Council,Housing Services,Homelessness,Supplies and Services,21/09/2011,406729,1590,REVENUE,Redacted Personal Data
Peterborough City Council,Children's & Education Services - Children's Social Care,Other Children's & Families Services,Third Party Payments,21/09/2011,406762,10000,REVENUE,Blumint
Peterborough City Council,Children's & Education Services - Children's Social Care,Other Children's & Families Services,Employees,21/09/2011,406765,1894.99,REVENUE,Sanctuary Personnel Ltd
Peterborough City Council,Deficit/(Surplus) on Trading Undertakings,Trading Account Surpluses & Deficits,Supplies and Services,21/09/2011,406770,9434.88,REVENUE,Perkins Engines Co Ltd
Peterborough City Council,Children's & Education Services - Education,Non-School Funding,Employees,21/09/2011,406829,720,REVENUE,National Portage Association
Peterborough City Council,Children's & Education Services - Education,Non-School Funding,Supplies and Services,21/09/2011,406929,880,REVENUE,Redacted Personal Data
Peterborough City Council,Central Services to the Public,Elections,Supplies and Services,21/09/2011,407012,7424.07,REVENUE,Royal Mail
Peterborough City Council,"Cultural, Environmental and Planning Services",Waste Collection,Supplies and Services,21/09/2011,407024,8728.33,REVENUE,Waste Recycling Ltd
Peterborough City Council,"Cultural, Environmental and Planning Services",Waste Collection,Supplies and Services,21/09/2011,407025,10176.86,REVENUE,Waste Recycling Ltd
Peterborough City Council,"Cultural, Environmental and Planning Services",Waste Collection,Supplies and Services,21/09/2011,407026,1592.55,REVENUE,Waste Recycling Ltd
Peterborough City Council,"Cultural, Environmental and Planning Services",Waste Collection,Supplies and Services,21/09/2011,407027,12645.56,REVENUE,Waste Recycling Ltd
Peterborough City Council,"Cultural, Environmental and Planning Services",Waste Collection,Supplies and Services,21/09/2011,407031,1192.21,REVENUE,Waste Recycling Ltd
Peterborough City Council,"Cultural, Environmental and Planning Services",Waste Collection,Supplies and Services,21/09/2011,407033,6874.17,REVENUE,Waste Recycling Ltd
Peterborough City Council,"Cultural, Environmental and Planning Services",Waste Collection,Supplies and Services,21/09/2011,407035,10905.51,REVENUE,Waste Recycling Ltd
Peterborough City Council,"Cultural, Environmental and Planning Services",Waste Collection,Supplies and Services,21/09/2011,407038,14113.43,REVENUE,Waste Recycling Ltd
Peterborough City Council,Children's & Education Services - Children's Social Care,Children Looked After,Supplies and Services,21/09/2011,407104,3500,REVENUE,Barford Care
Peterborough City Council,Support Services,Support Services,Supplies and Services,21/09/2011,407111,1975.2,REVENUE,Browne Jacobson
Peterborough City Council,Children's & Education Services - Children's Social Care,Family Support Services,Third Party Payments,21/09/2011,407119,5802.85,REVENUE,Family Action
Peterborough City Council,Children's & Education Services - Children's Social Care,Family Support Services,Third Party Payments,21/09/2011,407120,36250,REVENUE,Family Action
Peterborough City Council,Children's & Education Services - Children's Social Care,Family Support Services,Third Party Payments,21/09/2011,407121,7230,REVENUE,Family Action
Peterborough City Council,Children's & Education Services - Children's Social Care,Children Looked After,Supplies and Services - Transfer Payments,21/09/2011,407140,3713.18,REVENUE,The Foster Care Co-operative
Peterborough City Council,Children's & Education Services - Education,Non-School Funding,Supplies and Services,21/09/2011,407145,2975,REVENUE,Cambridgeshire County Council
Peterborough City Council,"Cultural, Environmental and Planning Services",Economic Development,Supplies and Services,21/09/2011,407150,11843.55,REVENUE,Centre for Sustainable Engineering
Peterborough City Council,Children's & Education Services - Education,Non-School Funding,Supplies and Services,21/09/2011,407151,1953,REVENUE,Peterborough Racial Equality Council
Peterborough City Council,Children's & Education Services - Children's Social Care,Support Services & Management Costs,Employees,21/09/2011,407168,1735.78,REVENUE,Randstad Care Ltd
Peterborough City Council,Housing Services,Supporting People,Third Party Payments,21/09/2011,407182,23153.64,REVENUE,YMCA Cambridge & Peterborough
Peterborough City Council,Housing Services,Supporting People,Third Party Payments,21/09/2011,407183,2222.25,REVENUE,Terrence Higgins Trust Ltd
Peterborough City Council,Housing Services,Supporting People,Third Party Payments,21/09/2011,407184,10190.99,REVENUE,Stonham Housing Association
Peterborough City Council,Housing Services,Supporting People,Third Party Payments,21/09/2011,407186,5250.75,REVENUE,Peterborough PCT
Peterborough City Council,Housing Services,Supporting People,Third Party Payments,21/09/2011,407189,1777.8,REVENUE,Peterborough Provider Services
Peterborough City Council,Housing Services,Supporting People,Third Party Payments,21/09/2011,407192,1777.8,REVENUE,Peterborough PCT
Peterborough City Council,Housing Services,Supporting People,Third Party Payments,21/09/2011,407194,5017.14,REVENUE,Peterborough Womens Aid
Peterborough City Council,Housing Services,Supporting People,Third Party Payments,21/09/2011,407195,2933.36,REVENUE,NACRO
Peterborough City Council,Housing Services,Supporting People,Third Party Payments,21/09/2011,407197,1415.93,REVENUE,Minster General Housing
Peterborough City Council,Housing Services,Supporting People,Third Party Payments,21/09/2011,407201,548.08,REVENUE,Hanover Housing Association
Peterborough City Council,Housing Services,Supporting People,Third Party Payments,21/09/2011,407202,5176.38,REVENUE,Springboard Housing Association
Peterborough City Council,Housing Services,Supporting People,Third Party Payments,21/09/2011,407203,19236,REVENUE,Cross Keys Homes
Peterborough City Council,Housing Services,Supporting People,Third Party Payments,21/09/2011,407204,62521.23,REVENUE,Axiom Housing Association
Peterborough City Council,Housing Services,Supporting People,Third Party Payments,21/09/2011,407205,1041.65,REVENUE,Anchor Trust
Peterborough City Council,Housing Services,Supporting People,Third Party Payments,21/09/2011,407206,1094.07,REVENUE,Accent Nene Housing Soc. Ltd
Peterborough City Council,Children's & Education Services - Children's Social Care,Children Looked After,Supplies and Services - Transfer Payments,21/09/2011,407223,2193.53,REVENUE,Redacted Personal Data
Peterborough City Council,Capital,Capital,Capital Pending Update to BS,21/09/2011,407238,53275.8,CAPITAL,Pinsent Masons
Peterborough City Council,Children's & Education Services - Children's Social Care,Children Looked After,Supplies and Services - Transfer Payments,21/09/2011,407258,2780.6,REVENUE,Lovell's Hall
Peterborough City Council,Children's & Education Services - Education,Non-School Funding,Supplies and Services,21/09/2011,407267,2269.5,REVENUE,East Anglia's Childrens Hospices
Peterborough City Council,Children's & Education Services - Children's Social Care,Children Looked After,Supplies and Services - Transfer Payments,21/09/2011,407278,1589.66,REVENUE,IAS TACT
Peterborough City Council,Children's & Education Services - Children's Social Care,Children Looked After,Supplies and Services - Transfer Payments,21/09/2011,407287,3176.53,REVENUE,IAS TACT
Peterborough City Council,"Cultural, Environmental and Planning Services",Planning Policy,Supplies and Services,21/09/2011,407294,4657.68,REVENUE,Local Government Services
Peterborough City Council,Capital,Capital,Capital Pending Update to BS,21/09/2011,407296,4157.82,CAPITAL,Burmor Construction
Peterborough City Council,Children's & Education Services - Children's Social Care,Family Support Services,More than one Expenses Type,21/09/2011,407301,1194.56,REVENUE,Cherry Lodge
Peterborough City Council,Capital,Capital,Capital Pending Update to BS,21/09/2011,407318,8608,CAPITAL,G D'Amore Ltd
Peterborough City Council,"Cultural, Environmental and Planning Services",More than one Service Division,More than one Expenses Type,21/09/2011,407321,330869.26,REVENUE,Enterprise Managed Services Limited
Peterborough City Council,"Highways, Roads & Transport Services","Transport planning, policy and strategy",Employees,21/09/2011,407354,1304.25,REVENUE,Hays Specialist Recruitment Ltd
Peterborough City Council,Support Services,Support Services,Premises,21/09/2011,407380,797.69,REVENUE,Anglian Water
Peterborough City Council,Support Services,Support Services,Premises,21/09/2011,407381,13377.86,REVENUE,Southern Electric
Peterborough City Council,Support Services,Support Services,Premises,21/09/2011,407382,599.45,REVENUE,Npower Ltd
Peterborough City Council,"Highways, Roads & Transport Services","Transport planning, policy and strategy",Employees,23/09/2011,373160,1356,REVENUE,Hays Specialist Recruitment Ltd
Peterborough City Council,"Cultural, Environmental and Planning Services",Community Safety (CCTV),Supplies and Services,23/09/2011,390703,8892.16,REVENUE,Quadrant Security Group Ltd
Peterborough City Council,"Cultural, Environmental and Planning Services",Community Safety (CCTV),Supplies and Services,23/09/2011,392755,8892.16,REVENUE,Quadrant Security Group Ltd
Peterborough City Council,"Cultural, Environmental and Planning Services",Community Safety (CCTV),Supplies and Services,23/09/2011,396675,8892.16,REVENUE,Quadrant Security Group Ltd
